{"text_format":"1","workbook":"xlsx","n_sheets":21,"sheets":["temp","data","APPLICATION FORM","SHORT INSTRUCTIONS","BASIC INFORMATION","PROJECT SUMMARY","PROJECT PARTNERSHIP","data_pobude","PROJECT DESCRIPTION","Project work plan","data_del_nacrt","EQUIPMENT   ","data_oprema","FINANCIAL PLAN","data_cas_nacrt","PROJECT ROADMAP","PROJECT IMPLEMENTATION RISKS","PROJECT IMPACT","INFORMATION AND PUBLICITY PLAN","CHECKLIST","SIGNATURE"],"not_rendered":{"charts":0,"images":1367,"macros":1,"external_links":0,"defined_names":64,"comments":1,"pivot_tables":0},"unopened":[],"bounds":{"document_bytes":16777216,"sheet_cells":100000,"rows_first":2000,"rows_last":500,"rows_between":2000,"halvings":0,"cell_chars":16384,"cell_head_chars":4096},"cells_cut":0,"cells_raw":0,"read":"whole","date_system":"1900"}

{"sheet":"temp","index":0,"n_rows":6,"n_cols":5,"rows_kept":6,"cut":false,"hidden":true,"merged":[]}
[]
[]
[]
[]
["Usposobljenost projektne skupine za izvedbo projekta"]
["Ime in priimek","Prijavitelj/ št. partnerja",null,"Vloga v projektu","Ključna znanja s pod-področja razpisa pombembnega za izvedbo projekta"]

{"sheet":"data","index":1,"n_rows":51,"n_cols":3,"rows_kept":51,"cut":false,"hidden":true,"merged":[]}
[]
["2. področji razpisa","Public Health Initiatives"]
[null,"Gender Equality"]
[]
[]
["2. področje_a","Reducing inequalities between user groups",1]
[null,"Prevention of life-style related diseases",2]
[null,"Improved mental health services",3]
[]
["2. področje_b","Economic decision-making",4]
[null,"Political decision-making",5]
[null,"Promoting work-life balance",6]
[]
[null,"JZ","ES"]
["4.1_pravni_statusi","pravna oseba javnega prava","pravna oseba javnega prava"]
[null,"neprofitna pravna oseba zasebnega prava, ki je nevladna organizacija","neprofitna pravna oseba zasebnega prava, ki je nevladna organizacija"]
[null,"neprofitna pravna oseba zasebnega prava, ki ni nevladna organizacija","neprofitna pravna oseba zasebnega prava, ki ni nevladna organizacija"]
[null,null,"profitna pravna oseba zasebnega prava"]
["osnovne informacije B28",{"$f":"IF('BASIC INFORMATION'!B29=1,\"'data'!B15:'data'!B17\",\"'data'!C15:'data'!C18\")","v":"'data'!B15:'data'!B17"}]
[]
[]
["Statistične regije","Pomurje"]
[null,"Podravje"]
[null,"Koroška"]
[null,"Osrednjeslovenska"]
[null,"Gorenjska"]
[null,"Zasavska"]
[null,"Dolenjska"]
[null,"Notranjsko - kraška"]
[null,"Goriška"]
[null,"Obalnokraška"]
[null,"Spodnjeposavska"]
[null,"Savinjska"]
[]
[]
["število parnterjev",1]
[null,2]
[null,3]
[null,4]
[null,5]
[null,6]
[null,7]
[null,8]
[null,9]
[null,10]
[null,11]
[null,12]
[null,13]
[null,14]
[null,15]
[null,16]

{"sheet":"APPLICATION FORM","index":2,"n_rows":14,"n_cols":6,"rows_kept":14,"cut":false,"hidden":false,"merged":[[13,3,13,4],[12,5,12,6],[13,5,13,6],[0,1,0,6],[1,1,1,6],[2,1,2,6],[3,1,3,6],[4,1,4,6],[5,1,5,6],[6,1,6,6],[7,1,7,6],[8,1,8,6],[9,1,9,6],[12,3,12,4]]}
[]
[null,"APPLICATION FORM"]
[]
[null,"for the call for proposals to co-finance projects under"]
[]
[null,"the Norwegian Financial Mechanism Programme 2009-2014 and the EEA Financial Mechanism Programme 2009-2014"]
[]
[]
[]
[null,"Set A – Norwegian Financial Mechanism Programme 2009-2014"]
[]
[]
[null,"Filled in by MEDT:",null,"SPIS No."]
[null,null,null,"Programme No.",null,"SI05"]

{"sheet":"SHORT INSTRUCTIONS","index":3,"n_rows":32,"n_cols":1,"rows_kept":32,"cut":false,"hidden":false,"merged":[]}
["SHORT INSTRUCTIONS FOR FILLING IN THE APPLICATION FORM"]
[]
[]
[]
["Before filling in the application form read the Annex 2 of the Applicants Manual – Set A, that supplements application form with additional instructions."]
["The application form must be filled in completely (all fields marked with green colour, and drop-down lists marked with yellow colour), unless different instructions are given (fields marked with white colour) and those parts which are to be completed automatically (fields marked with grey colour)."]
["Legend"]
["Mandatory field "]
["Conditionally mandatory field, mandatory only if required by instructions"]
["Drop-down list"]
["Automatic field"]
[]
[]
["The application form in the Slovenian language and the application form in the English should be filled in electronically Excel file; application forms completed in manuscript will be rejected."]
["The electronic version and the hard copy should be identical. This applies to the application form in the Slovenian as to the application form in English language."]
["The hard copy is appropriately signed and dated."]
["All financial figures must be in Euros. "]
["Before submitting the application, verify that all information is correct, including the figures, and even those that are calculated automatically."]
["All of the data from open applications are public, except those specifically marked by the applicant as a business secret. Data supplied by the applicants and considered a business secret should be marked as such in the application. An individual information or part of the application can be marked as a business secret, it cannot, however, refer to the full application and data which are necessary for the assessment of the application according to the criteria of the call for proposals. "]
["Send a copy of the fully completed application form in the Slovenian language AND a copy of the fully completed application form in the English language in hard copy AND the electronic version (on CD, DVD or USB flash drive), along with the rest of the documentation to the following address"]
["Ministry of Economic Development and Technology\nKotnikova ulica 5\n1000 Ljubljana\n"]
[]
["Technical information on the electronic fulfilment of applications in Excel"]
["The application form is in the standard programming tool Microsoft Excel. Before filling in the application, you must first choose “Enable content”."]
["In Chapter 2 – Basic Information of the application form you should first select the area and sub-area of the call. Further structure of the application form is dependent and is adjusted to the selected area and sub-area. \n"]
[]
["By clicking on the drop-down list, marked in yellow, an arrow appears on the right side. If you click again on the same field or on the arrow, the content of the drop-down list appears. You should always choose one of the options listed in the drop-down list."]
["If you wish to make a new line, hold the Alt key, press the Enter key and continue writing.\nFormat (height, width) of application form elements (rows, columns) cannot be changed because it is protected. "]
["You can move between the tabs by using the controller which is located in the bottom left corner of Excel."]
["The application form in hard copy and electronic version should be identical. To avoid data loss in the hard cop, keep the size of the fields to be filled in, although the application form enables you to fill in under this point. The size of the field has been adjusted to the admissible number of characters of each field or cell."]
["Do not forget to promptly save the data entered."]
["In the event of problems or error messages (such as Visual Basic), please contact the Programme Operator. \n"]

{"sheet":"BASIC INFORMATION","index":4,"n_rows":38,"n_cols":5,"rows_kept":38,"cut":false,"hidden":false,"merged":[[2,0,2,1]]}
["2. BASIC INFORMATION"]
[]
["Write the title of the project and its acronym. Select the area and sub-area of the call. Write the overall value. Fill in the information on the duration of the project. Note regarding the latter that the project must last at least 12 months, but not longer than by 30 April 2016. The financial data will be downloaded automatically when the financing plan is completed. "]
[]
[]
[]
["Project title",null,null,"Max 200 characters."]
["Project acronym",null,null,"Max 50 characters."]
["Programme","Norwegian Financial Mechanism 2009–2014"]
["Area of the call in Set A",null,null,"Choose one of the options"]
["Sub-area “Public Health Initiatives”",null,null,"Choose one of the options"]
["Sub-area “Gender Equality”",null,null,"Choose one of the options"]
["Overall value of the project",null,null,"Indicate eligible and as well as any ineligible project costs that will be incurred during the project implementation period."]
["Total eligible costs of the project",{"$f":"'FINANCIAL PLAN'!N27","v":0},null,"The value is automatically transferred from the tab Financial plan, when it is filled in."]
["The requested amount of the grant for co-financing of the project",{"$f":"'FINANCIAL PLAN'!N29","v":0},null,"The value is automatically transferred from the tab Financial plan, when it is filled in."]
["Share of the grant for co-financing of project",{"$f":"'FINANCIAL PLAN'!O29","v":{"$error":"#DIV/0!"}},null,"The value is automatically transferred from the tab Financial plan, when it is filled in."]
["(B/Ax100) ",null,null,"The value is automatically transferred from the tab Financial plan, when it is filled in."]
["The amount of own contribution",{"$f":"'FINANCIAL PLAN'!N28","v":0},null,"The value is automatically transferred from the tab Financial plan, when it is filled in."]
["The share of own contribution",{"$f":"'FINANCIAL PLAN'!O28","v":{"$error":"#DIV/0!"}},null,"The value is automatically transferred from the tab Financial plan, when it is filled in."]
["Project duration",{"$f":"DATEDIF(B21,B22,\"y\") & \" year(s), \" & DATEDIF(B21,B22,\"ym\") & \" month(s), \" & DATEDIF(B21,B22,\"md\") & \" day(s)\"","v":"2 year(s), 3 month(s), 28 day(s)"},null,"Duration of the project is calculated automatically, when you define start and closure dates.",{"$f":"IF((DATEDIF(B21,B22,\"m\") < 12),\"Projekt mora trajati vsaj 12 mesecev!\",\"\")","v":""}]
["Start","01.01.2014",null,"Select the date"]
["Closure","29.04.2016",null,"Select the date"]
[]
[]
[]
[]
["SKRITO"]
[]
["Področje razpisa (1 ali 2)",{"$f":"(IF(B10=\"Gender Equality\",2,1))","v":1}]
["Podpodročje razpisa 1",{"$f":"IF(B11=\"Reducing inequalities between user groups\",1,IF(B11=\"Prevention of life-style related diseases\",2,IF(B11=\"Improved mental health services\",3,0)))","v":0}]
["Podpodročje razpisa 2",{"$f":"IF(B12=\"Economic decision-making\",4,IF(B12=\"Political decision-making\",5,IF(B12=\"Promoting work-life balance\",6,0)))","v":0}]
["Skupno področje razpisa",{"$f":"IF(B29=1,B30,IF(B29=2,B31,0))","v":0}]
["Polno ime",{"$f":"(IF(B10=\"Enakost spolov\",B12,B11))","v":0}]
[]
[]
[]
["KOMENTARJI"]
["B32 je vrednost podpročja, B28 pa področja"]

{"sheet":"PROJECT SUMMARY","index":5,"n_rows":6,"n_cols":4,"rows_kept":6,"cut":false,"hidden":false,"merged":[[2,0,2,1],[5,0,5,1]]}
["3. PROJECT SUMMARY"]
[]
["In the summary of the project specify its rationale, the general and specific objectives, insofar as they exist. Specify the target group, the expected outcomes, key outputs and main activities of the project. Describe how the project will contribute to bilateral relations and what will the partnership achieve."]
[]
["Project summary"]
[null,null,null,"Max 1000 characters."]

{"sheet":"PROJECT PARTNERSHIP","index":6,"n_rows":527,"n_cols":12,"rows_kept":527,"cut":false,"hidden":false,"merged":[[4,0,4,4],[522,0,522,4],[2,0,2,4],[40,0,40,4],[41,0,41,4],[43,0,43,4],[44,0,44,4],[47,0,47,4],[48,0,48,4],[346,1,346,4],[348,1,348,4],[26,1,26,4],[80,0,80,4],[81,0,81,4],[327,1,327,4],[328,1,328,4],[329,1,329,4],[330,1,330,4],[319,1,319,4],[320,1,320,4],[321,1,321,4],[322,1,322,4],[323,1,323,4],[324,1,324,4],[351,1,351,4],[345,1,345,4],[334,1,334,4],[335,1,335,4],[336,1,336,4],[337,1,337,4],[338,1,338,4],[347,1,347,4],[318,1,318,4],[325,1,325,4],[326,1,326,4],[349,1,349,4],[341,0,341,4],[342,0,342,4],[331,1,331,4],[332,1,332,4],[333,1,333,4],[350,1,350,4],[55,1,55,4],[56,1,56,4],[57,1,57,4],[58,1,58,4],[59,1,59,4],[60,1,60,4],[76,1,76,4],[77,1,77,4],[61,1,61,4],[62,1,62,4],[63,1,63,4],[64,1,64,4],[301,1,301,4],[302,1,302,4],[303,1,303,4],[284,0,284,4],[287,1,287,4],[288,1,288,4],[289,1,289,4],[290,1,290,4],[291,1,291,4],[292,1,292,4],[293,1,293,4],[294,1,294,4],[5,1,5,4],[6,1,6,4],[7,1,7,4],[8,1,8,4],[9,1,9,4],[10,1,10,4],[66,1,66,4],[67,1,67,4],[68,1,68,4],[65,1,65,4],[27,1,27,4],[28,1,28,4],[29,1,29,4],[30,1,30,4],[17,1,17,4],[18,1,18,4],[19,1,19,4],[20,1,20,4],[21,1,21,4],[22,1,22,4],[23,1,23,4],[24,1,24,4],[25,1,25,4],[11,1,11,4],[12,1,12,4],[13,1,13,4],[14,1,14,4],[15,1,15,4],[16,1,16,4],[31,1,31,4],[32,1,32,4],[33,1,33,4],[34,1,34,4],[35,1,35,4],[317,1,317,4],[72,1,72,4],[73,1,73,4],[74,1,74,4],[75,1,75,4],[69,1,69,4],[70,1,70,4],[71,1,71,4],[304,1,304,4],[305,1,305,4],[306,1,306,4],[307,1,307,4],[308,1,308,4],[309,1,309,4],[312,0,312,4],[313,0,313,4],[316,1,316,4],[295,1,295,4],[296,1,296,4],[297,1,297,4],[298,1,298,4],[299,1,299,4],[300,1,300,4],[273,1,273,4],[274,1,274,4],[275,1,275,4],[276,1,276,4],[277,1,277,4],[278,1,278,4],[279,1,279,4],[280,1,280,4],[283,0,283,4],[264,1,264,4],[265,1,265,4],[266,1,266,4],[267,1,267,4],[268,1,268,4],[269,1,269,4],[270,1,270,4],[271,1,271,4],[272,1,272,4],[251,1,251,4],[254,0,254,4],[255,0,255,4],[258,1,258,4],[259,1,259,4],[260,1,260,4],[261,1,261,4],[262,1,262,4],[263,1,263,4],[242,1,242,4],[243,1,243,4],[244,1,244,4],[245,1,245,4],[246,1,246,4],[247,1,247,4],[248,1,248,4],[249,1,249,4],[250,1,250,4],[233,1,233,4],[234,1,234,4],[235,1,235,4],[236,1,236,4],[237,1,237,4],[238,1,238,4],[239,1,239,4],[240,1,240,4],[241,1,241,4],[220,1,220,4],[221,1,221,4],[222,1,222,4],[225,0,225,4],[226,0,226,4],[229,1,229,4],[230,1,230,4],[231,1,231,4],[232,1,232,4],[211,1,211,4],[212,1,212,4],[213,1,213,4],[214,1,214,4],[215,1,215,4],[216,1,216,4],[217,1,217,4],[218,1,218,4],[219,1,219,4],[202,1,202,4],[203,1,203,4],[204,1,204,4],[205,1,205,4],[206,1,206,4],[207,1,207,4],[208,1,208,4],[209,1,209,4],[210,1,210,4],[189,1,189,4],[190,1,190,4],[191,1,191,4],[192,1,192,4],[193,1,193,4],[196,0,196,4],[197,0,197,4],[200,1,200,4],[201,1,201,4],[180,1,180,4],[181,1,181,4],[182,1,182,4],[183,1,183,4],[184,1,184,4],[185,1,185,4],[186,1,186,4],[187,1,187,4],[188,1,188,4],[171,1,171,4],[172,1,172,4],[173,1,173,4],[174,1,174,4],[175,1,175,4],[176,1,176,4],[177,1,177,4],[178,1,178,4],[179,1,179,4],[163,1,163,4],[164,1,164,4],[167,0,167,4],[168,0,168,4],[113,1,113,4],[114,1,114,4],[115,1,115,4],[116,1,116,4],[117,1,117,4],[157,1,157,4],[158,1,158,4],[159,1,159,4],[160,1,160,4],[161,1,161,4],[162,1,162,4],[151,1,151,4],[152,1,152,4],[153,1,153,4],[154,1,154,4],[155,1,155,4],[142,1,142,4],[143,1,143,4],[144,1,144,4],[156,1,156,4],[145,1,145,4],[146,1,146,4],[147,1,147,4],[148,1,148,4],[149,1,149,4],[150,1,150,4],[129,1,129,4],[130,1,130,4],[131,1,131,4],[132,1,132,4],[133,1,133,4],[134,1,134,4],[135,1,135,4],[138,0,138,4],[139,0,139,4],[120,1,120,4],[121,1,121,4],[122,1,122,4],[123,1,123,4],[124,1,124,4],[125,1,125,4],[126,1,126,4],[127,1,127,4],[128,1,128,4],[102,1,102,4],[103,1,103,4],[104,1,104,4],[105,1,105,4],[106,1,106,4],[109,0,109,4],[110,0,110,4],[118,1,118,4],[119,1,119,4],[93,1,93,4],[94,1,94,4],[95,1,95,4],[96,1,96,4],[97,1,97,4],[98,1,98,4],[99,1,99,4],[100,1,100,4],[101,1,101,4],[84,1,84,4],[85,1,85,4],[86,1,86,4],[87,1,87,4],[88,1,88,4],[89,1,89,4],[90,1,90,4],[91,1,91,4],[92,1,92,4],[358,1,358,4],[359,1,359,4],[360,1,360,4],[361,1,361,4],[362,1,362,4],[363,1,363,4],[352,1,352,4],[353,1,353,4],[354,1,354,4],[355,1,355,4],[356,1,356,4],[357,1,357,4],[374,1,374,4],[375,1,375,4],[376,1,376,4],[377,1,377,4],[378,1,378,4],[379,1,379,4],[364,1,364,4],[365,1,365,4],[366,1,366,4],[367,1,367,4],[370,0,370,4],[371,0,371,4],[386,1,386,4],[387,1,387,4],[388,1,388,4],[389,1,389,4],[390,1,390,4],[391,1,391,4],[380,1,380,4],[381,1,381,4],[382,1,382,4],[383,1,383,4],[384,1,384,4],[385,1,385,4],[400,0,400,4],[403,1,403,4],[404,1,404,4],[405,1,405,4],[406,1,406,4],[407,1,407,4],[392,1,392,4],[393,1,393,4],[394,1,394,4],[395,1,395,4],[396,1,396,4],[399,0,399,4],[414,1,414,4],[415,1,415,4],[416,1,416,4],[417,1,417,4],[418,1,418,4],[419,1,419,4],[408,1,408,4],[409,1,409,4],[410,1,410,4],[411,1,411,4],[412,1,412,4],[413,1,413,4],[428,0,428,4],[429,0,429,4],[432,1,432,4],[433,1,433,4],[434,1,434,4],[435,1,435,4],[420,1,420,4],[421,1,421,4],[422,1,422,4],[423,1,423,4],[424,1,424,4],[425,1,425,4],[442,1,442,4],[443,1,443,4],[444,1,444,4],[445,1,445,4],[446,1,446,4],[447,1,447,4],[436,1,436,4],[437,1,437,4],[438,1,438,4],[439,1,439,4],[440,1,440,4],[441,1,441,4],[454,1,454,4],[457,0,457,4],[458,0,458,4],[461,1,461,4],[462,1,462,4],[463,1,463,4],[448,1,448,4],[449,1,449,4],[450,1,450,4],[451,1,451,4],[452,1,452,4],[453,1,453,4],[470,1,470,4],[471,1,471,4],[472,1,472,4],[473,1,473,4],[474,1,474,4],[475,1,475,4],[464,1,464,4],[465,1,465,4],[466,1,466,4],[467,1,467,4],[468,1,468,4],[469,1,469,4],[482,1,482,4],[483,1,483,4],[486,0,486,4],[487,0,487,4],[490,1,490,4],[491,1,491,4],[476,1,476,4],[477,1,477,4],[478,1,478,4],[479,1,479,4],[480,1,480,4],[481,1,481,4],[498,1,498,4],[499,1,499,4],[500,1,500,4],[501,1,501,4],[502,1,502,4],[503,1,503,4],[492,1,492,4],[493,1,493,4],[494,1,494,4],[495,1,495,4],[496,1,496,4],[497,1,497,4],[510,1,510,4],[511,1,511,4],[512,1,512,4],[515,0,515,4],[516,0,516,4],[504,1,504,4],[505,1,505,4],[506,1,506,4],[507,1,507,4],[508,1,508,4],[509,1,509,4]]}
["4. PROJECT PARTNERSHIP"]
[]
["In the summary of the project specify its rationale, the general and specific objectives, insofar as they exist. Specify the target group, the expected outcomes, key outputs and main activities of the project. Describe how the project will contribute to bilateral relations and what will the partnership achieve."]
["Applicant"]
["Please provide the official name of the institution. It is also desirable to specify the organizational unit. Select the status from the drop-down list. Fill in official address, tax and registration number. If you wish, you can write a phone number and website of the applicant. Fill in the required information about the person in charge and about the contact person, who is also the Project Manager, while the contact address should be specified only insofar as it is different from the official. Please provide information on the bank, with which the applicant has opened an account, the seat of the bank should be located in the Republic of Slovenia.",null,null,null,null,null,null,null,null,null,null,"legal entity under public law"]
["Name of the institution",null,null,null,null,null,null,null,null,{"$f":"IF('BASIC INFORMATION'!B29=1,\"L5:L7\",\"L5:L8\")","v":"L5:L7"},null,"non-profit legal entity under private law which is a non-governmental organisation"]
["Status ","legal entity under public law",null,null,null,null,"Select one of the options from the list.",null,null,null,null,"non-profit legal entity under private law which is not a non-governmental organisation"]
["Official address",null,null,null,null,null,null,null,null,null,null,"profit legal entity under private law"]
["Address"]
["Postal code  ",null,null,null,null,null,null,null,null,56]
["City/Town"]
["State"]
["Tax number "]
["Registration number"]
["Phone"]
["Website"]
["Person in charge of the institution"]
["Name and surname"]
["E-mail"]
["Contact person"]
["Name and surname"]
["Phone"]
["E-mail"]
["Address"]
["Postal code  "]
["City/Town"]
["State"]
["Bank details of the applicant"]
["Bank name"]
["Address"]
["Postal code  "]
["City/Town"]
["State","Slovenia"]
["Account number"]
["IBAN"]
["BIC/SWIFT code "]
[]
[]
["Description of the applicant"]
[]
["Describe the applicant's main regular activities; include information on the staff and technical capacity relevant for the implementation of the project.",null,null,null,null,null,null,1]
[null,null,null,null,null,null,"Max 3000 characters.",2]
[null,null,null,null,null,null,null,3]
["Describe skills and experience in the field of management and coordination of projects. Especially emphasize the projects financed under the EU funds or other international sources. Please provide information on the key projects of similar complexity in the past ten years, for the later specify the name of the project and its value, your role and acquired knowledge and experience.",null,null,null,null,null,null,4]
[null,null,null,null,null,null,"Max 2000 characters.",5]
[null,null,null,null,null,null,null,6]
["Contribution of the applicant to the project ",null,null,null,null,null,null,7]
["Describe the expected contribution of the applicant to the project: its role and responsibility during the implementation of the project. Describe to which outcomes and outputs of the project the applicant will contribute.",null,null,null,null,null,null,8]
[null,null,null,null,null,null,"Max 2000 characters.",9]
[null,null,null,null,null,null,null,10]
["Partners",null,null,null,null,null,null,11]
[null,null,null,null,null,null,null,12]
["Number of partners",16,null,null,null,null,"Select the number of partners from the list.",13]
[null,null,null,null,null,null,null,14]
[null,null,null,null,null,null,null,15]
["Partner N",1,null,null,null,null,null,16]
["Name of the institution",null,null,null,null,null,null,17]
["Status ","legal entity under public law",null,null,null,null,null,18]
["Official address",null,null,null,null,null,null,19]
["Address",null,null,null,null,null,null,20]
["Postal code  ",null,null,null,null,null,null,21]
["City/Town",null,null,null,null,null,null,22]
["State",null,null,null,null,null,null,23]
["Tax number",null,null,null,null,null,null,24]
["Registration number",null,null,null,null,null,null,25]
["Phone",null,null,null,null,null,null,26]
["Website",null,null,null,null,null,null,27]
["Person in charge of the institution",null,null,null,null,null,null,28]
["Name and surname",null,null,null,null,null,null,29]
["Email",null,null,null,null,null,null,30]
["Kontaktna oseba",null,null,null,null,null,null,31]
["Name and surname",null,null,null,null,null,null,32]
["Phone",null,null,null,null,null,null,33]
["Email",null,null,null,null,null,null,34]
["Address",null,null,null,null,null,null,35]
["Postal code  ",null,null,null,null,null,null,36]
["City/Town",null,null,null,null,null,null,37]
["State",null,null,null,null,null,null,38]
[null,null,null,null,null,null,null,39]
["Contribution of the partner to the project",null,null,null,null,null,null,40]
["Describe the expected contribution of the partner to the project: give reasons for the inclusion of the individual project partner, its role and responsibility during the implementation of the project. Describe to which outcomes and results of the project each project partner will contribute.",null,null,null,null,null,null,41]
[null,null,null,null,null,null,"Max 2000 characters.",42]
[null,null,null,null,null,null,null,43]
[null,null,null,null,null,null,null,44]
["Partner N",2,null,null,null,null,null,45]
["Name of the institution",null,null,null,null,null,null,46]
["Status ","non-profit legal entity under private law which is a non-governmental organisation"]
["Official address"]
["Address"]
["Postal code  "]
["City/Town"]
["State"]
["Tax number"]
["Registration number"]
["Phone"]
["Website"]
["Person in charge of the institution"]
["Name and surname"]
["Email"]
["Kontaktna oseba"]
["Name and surname"]
["Phone"]
["Email"]
["Address"]
["Postal code  "]
["City/Town"]
["State"]
[]
["Contribution of the partner to the project"]
["Describe the expected contribution of the partner to the project: give reasons for the inclusion of the individual project partner, its role and responsibility during the implementation of the project. Describe to which outcomes and results of the project each project partner will contribute."]
[null,null,null,null,null,null,"Max 2000 characters."]
[]
[]
["Partner N",3]
["Name of the institution"]
["Status ","legal entity under public law"]
["Official address"]
["Address"]
["Postal code  "]
["City/Town"]
["State"]
["Tax number"]
["Registration number"]
["Phone"]
["Website"]
["Person in charge of the institution"]
["Name and surname"]
["Email"]
["Kontaktna oseba"]
["Name and surname"]
["Phone"]
["Email"]
["Address"]
["Postal code  "]
["City/Town"]
["State"]
[]
["Contribution of the partner to the project"]
["Describe the expected contribution of the partner to the project: give reasons for the inclusion of the individual project partner, its role and responsibility during the implementation of the project. Describe to which outcomes and results of the project each project partner will contribute."]
[]
[]
[]
["Partner N",4]
["Name of the institution"]
["Status ","non-profit legal entity under private law which is a non-governmental organisation"]
["Official address"]
["Address"]
["Postal code  "]
["City/Town"]
["State"]
["Tax number"]
["Registration number"]
["Phone"]
["Website"]
["Person in charge of the institution"]
["Name and surname"]
["Email"]
["Kontaktna oseba"]
["Name and surname"]
["Phone"]
["Email"]
["Address"]
["Postal code  "]
["City/Town"]
["State"]
[]
["Contribution of the partner to the project"]
["Describe the expected contribution of the partner to the project: give reasons for the inclusion of the individual project partner, its role and responsibility during the implementation of the project. Describe to which outcomes and results of the project each project partner will contribute."]
[null,null,null,null,null,null,"Max 2000 characters."]
[]
[]
["Partner N",5]
["Name of the institution"]
["Status ","legal entity under public law"]
["Official address"]
["Address"]
["Postal code  "]
["City/Town"]
["State"]
["Tax number"]
["Registration number"]
["Phone"]
["Website"]
["Person in charge of the institution"]
["Name and surname"]
["Email"]
["Kontaktna oseba"]
["Name and surname"]
["Phone"]
["Email"]
["Address"]
["Postal code  "]
["City/Town"]
["State"]
[]
["Contribution of the partner to the project"]
["Describe the expected contribution of the partner to the project: give reasons for the inclusion of the individual project partner, its role and responsibility during the implementation of the project. Describe to which outcomes and results of the project each project partner will contribute."]
[null,null,null,null,null,null,"Max 2000 characters."]
[]
[]
["Partner N",6]
["Name of the institution"]
["Status ","legal entity under public law"]
["Official address"]
["Address"]
["Postal code  "]
["City/Town"]
["State"]
["Tax number"]
["Registration number"]
["Phone"]
["Website"]
["Person in charge of the institution"]
["Name and surname"]
["Email"]
["Kontaktna oseba"]
["Name and surname"]
["Phone"]
["Email"]
["Address"]
["Postal code  "]
["City/Town"]
["State"]
[]
["Contribution of the partner to the project"]
["Describe the expected contribution of the partner to the project: give reasons for the inclusion of the individual project partner, its role and responsibility during the implementation of the project. Describe to which outcomes and results of the project each project partner will contribute."]
[null,null,null,null,null,null,"Max 2000 characters."]
[]
[]
["Partner N",7]
["Name of the institution"]
["Status ","legal entity under public law"]
["Official address"]
["Address"]
["Postal code  "]
["City/Town"]
["State"]
["Tax number"]
["Registration number"]
["Phone"]
["Website"]
["Person in charge of the institution"]
["Name and surname"]
["Email"]
["Kontaktna oseba"]
["Name and surname"]
["Phone"]
["Email"]
["Address"]
["Postal code  "]
["City/Town"]
["State"]
[]
["Contribution of the partner to the project"]
["Describe the expected contribution of the partner to the project: give reasons for the inclusion of the individual project partner, its role and responsibility during the implementation of the project. Describe to which outcomes and results of the project each project partner will contribute."]
[null,null,null,null,null,null,"Max 2000 characters."]
[]
[]
["Partner N",8]
["Name of the institution"]
["Status ","legal entity under public law"]
["Official address"]
["Address"]
["Postal code  "]
["City/Town"]
["State"]
["Tax number"]
["Registration number"]
["Phone"]
["Website"]
["Person in charge of the institution"]
["Name and surname"]
["Email"]
["Kontaktna oseba"]
["Name and surname"]
["Phone"]
["Email"]
["Address"]
["Postal code  "]
["City/Town"]
["State"]
[]
["Contribution of the partner to the project"]
["Describe the expected contribution of the partner to the project: give reasons for the inclusion of the individual project partner, its role and responsibility during the implementation of the project. Describe to which outcomes and results of the project each project partner will contribute."]
[null,null,null,null,null,null,"Max 2000 characters."]
[]
[]
["Partner N",9]
["Name of the institution"]
["Status ","legal entity under public law"]
["Official address"]
["Address"]
["Postal code  "]
["City/Town"]
["State"]
["Tax number"]
["Registration number"]
["Phone"]
["Website"]
["Person in charge of the institution"]
["Name and surname"]
["Email"]
["Kontaktna oseba"]
["Name and surname"]
["Phone"]
["Email"]
["Address"]
["Postal code  "]
["City/Town"]
["State"]
[]
["Contribution of the partner to the project"]
["Describe the expected contribution of the partner to the project: give reasons for the inclusion of the individual project partner, its role and responsibility during the implementation of the project. Describe to which outcomes and results of the project each project partner will contribute."]
[null,null,null,null,null,null,"Max 2000 characters."]
[]
[]
["Partner N",10]
["Name of the institution"]
["Status ","legal entity under public law"]
["Official address"]
["Address"]
["Postal code  "]
["City/Town"]
["State"]
["Tax number"]
["Registration number"]
["Phone"]
["Website"]
["Person in charge of the institution"]
["Name and surname"]
["Email"]
["Kontaktna oseba"]
["Name and surname"]
["Phone"]
["Email"]
["Address"]
["Postal code  "]
["City/Town"]
["State"]
[]
["Contribution of the partner to the project"]
["Describe the expected contribution of the partner to the project: give reasons for the inclusion of the individual project partner, its role and responsibility during the implementation of the project. Describe to which outcomes and results of the project each project partner will contribute."]
[null,null,null,null,null,null,"Max 2000 characters."]
[]
[]
["Partner N",11]
["Name of the institution"]
["Status ","legal entity under public law"]
["Official address"]
["Address"]
["Postal code  "]
["City/Town"]
["State"]
["Tax number"]
["Registration number"]
["Phone"]
["Website"]
["Person in charge of the institution"]
["Name and surname"]
["Email"]
["Kontaktna oseba"]
["Name and surname"]
["Phone"]
["Email"]
["Address"]
["Postal code  "]
["City/Town"]
["State"]
[]
["Contribution of the partner to the project"]
["Describe the expected contribution of the partner to the project: give reasons for the inclusion of the individual project partner, its role and responsibility during the implementation of the project. Describe to which outcomes and results of the project each project partner will contribute."]
[null,null,null,null,null,null,"Max 2000 characters."]
[]
[]
["Partner N",12]
["Name of the institution"]
["Status ","legal entity under public law"]
["Official address"]
["Address"]
["Postal code  "]
["City/Town"]
["State"]
["Tax number"]
["Registration number"]
["Phone"]
["Website"]
["Person in charge of the institution"]
["Name and surname"]
["Email"]
["Kontaktna oseba"]
["Name and surname"]
["Phone"]
["Email"]
["Address"]
["Postal code  "]
["City/Town"]
["State"]
[]
["Contribution of the partner to the project"]
["Describe the expected contribution of the partner to the project: give reasons for the inclusion of the individual project partner, its role and responsibility during the implementation of the project. Describe to which outcomes and results of the project each project partner will contribute."]
[null,null,null,null,null,null,"Max 2000 characters."]
[]
[]
["Partner N",13]
["Name of the institution"]
["Status ","legal entity under public law"]
["Official address"]
["Address"]
["Postal code  "]
["City/Town"]
["State"]
["Tax number"]
["Registration number"]
["Phone"]
["Website"]
["Person in charge of the institution"]
["Name and surname"]
["Email"]
["Kontaktna oseba"]
["Name and surname"]
["Phone"]
["Email"]
["Address"]
["Postal code  "]
["City/Town"]
["State"]
[]
["Contribution of the partner to the project"]
["Describe the expected contribution of the partner to the project: give reasons for the inclusion of the individual project partner, its role and responsibility during the implementation of the project. Describe to which outcomes and results of the project each project partner will contribute."]
[null,null,null,null,null,null,"Max 2000 characters."]
[]
[]
["Partner N",14]
["Name of the institution"]
["Status ","legal entity under public law"]
["Official address"]
["Address"]
["Postal code  "]
["City/Town"]
["State"]
["Tax number"]
["Registration number"]
["Phone"]
["Website"]
["Person in charge of the institution"]
["Name and surname"]
["Email"]
["Kontaktna oseba"]
["Name and surname"]
["Phone"]
["Email"]
["Address"]
["Postal code  "]
["City/Town"]
["State"]
[]
["Contribution of the partner to the project"]
["Describe the expected contribution of the partner to the project: give reasons for the inclusion of the individual project partner, its role and responsibility during the implementation of the project. Describe to which outcomes and results of the project each project partner will contribute."]
[null,null,null,null,null,null,"Max 2000 characters."]
[]
[]
["Partner N",15]
["Name of the institution"]
["Status ","legal entity under public law"]
["Official address"]
["Address"]
["Postal code  "]
["City/Town"]
["State"]
["Tax number"]
["Registration number"]
["Phone"]
["Website"]
["Person in charge of the institution"]
["Name and surname"]
["Email"]
["Kontaktna oseba"]
["Name and surname"]
["Phone"]
["Email"]
["Address"]
["Postal code  "]
["City/Town"]
["State"]
[]
["Contribution of the partner to the project"]
["Describe the expected contribution of the partner to the project: give reasons for the inclusion of the individual project partner, its role and responsibility during the implementation of the project. Describe to which outcomes and results of the project each project partner will contribute."]
[null,null,null,null,null,null,"Max 2000 characters."]
[]
[]
["Partner N",16]
["Name of the institution"]
["Status ","legal entity under public law"]
["Official address"]
["Address"]
["Postal code  "]
["City/Town"]
["State"]
["Tax number"]
["Registration number"]
["Phone"]
["Website"]
["Person in charge of the institution"]
["Name and surname"]
["Email"]
["Kontaktna oseba"]
["Name and surname"]
["Phone"]
["Email"]
["Address"]
["Postal code  "]
["City/Town"]
["State"]
[]
["Contribution of the partner to the project"]
["Describe the expected contribution of the partner to the project: give reasons for the inclusion of the individual project partner, its role and responsibility during the implementation of the project. Describe to which outcomes and results of the project each project partner will contribute."]
[null,null,null,null,null,null,"Max 2000 characters."]
[]
[]
["Usposobljenost projektne skupine za izvedbo projekta"]
[]
["The qualifications of the project team for the implementation of the project"]
["Provide all members of the project team of the applicant and partner (Partner 1, Partner 2, etc.) which are taking part in the implementation of the project. List all the foreseen persons even if the names are not yet known. Please specify their role in the project (e.g., project leader, lawyer, financier, the contractor of the project, etc.) and their knowledge and experience with sub-areas, significant for the implementation of the project. "]
[]
[null,null,null,"Select number of entries",10]
["Name and surname","Applicant/\npartner No",null,"Role in the project","Key knowledge and experience in the area in the call important for the implementation of the project"]
[null,null,null,null,null,null,"Max 500 characters for the specification of key knowledge and experience."]

{"sheet":"data_pobude","index":7,"n_rows":51,"n_cols":12,"rows_kept":51,"cut":false,"hidden":true,"merged":[]}
["Range-i za posamezne učinke",null,null,null,null,null,null,null,"Osnovne informacije'!B31","2. področje_a"]
["dod. Polj","podrocje",null,"data_field",null,null,null,null,{"$f":"'BASIC INFORMATION'!B32","v":0},null,"Zmanjševanje razlik v zdravju med skupinami uporabnikov",1]
[1,1,"46-50","F34",null,null,null,null,null,null,"Preprečevanje bolezni, povezanih z življenjskim slogom",2]
[2,1,"51-55",null,null,null,null,null,null,null,"Izboljšanje storitev na področju duševnega zdravja",3]
[3,1,"56-60",null,null,null,null,null,null,"2. področje_b"]
[4,1,"61-65",null,null,null,null,null,null,null,"Odločanje na gospodarskem področju",4]
[5,1,"66-70",null,null,null,null,null,null,null,"Odločanje na političnem področju",5]
[null,null,null,null,null,null,null,null,null,null,"Usklajevanje poklicnega in družinskega življenja",6]
[1,2,"84-88","F72"]
[2,2,"89-93"]
[3,2,"94-98"]
[4,2,"99-103"]
[5,2,"104-108"]
[]
[1,3,"122-126","F110"]
[2,3,"127-131"]
[3,3,"132-136"]
[4,3,"137-141"]
[5,3,"142-146"]
[]
[1,4,"168-172","F161"]
[2,4,"173-177"]
[3,4,"178-182"]
[4,4,"183-187"]
[5,4,"188-192"]
[]
[1,5,"201-205","F194"]
[2,5,"206-210"]
[3,5,"211-215"]
[4,5,"216-220"]
[5,5,"221-225"]
[]
[1,6,"234-238","F227"]
[2,6,"239-243"]
[3,6,"244-248"]
[4,6,"249-253"]
[5,6,"254-258"]
[]
[]
[]
["5.4 hide all",null,31,258]
[]
[1,null,31,70]
[2,null,72,108]
[3,null,110,156]
[4,null,161,192]
[5,null,194,225]
[6,null,227,258]
[]
["header 1",null,158,160]
["header 2",null,31,33]

{"sheet":"PROJECT DESCRIPTION","index":8,"n_rows":284,"n_cols":18,"rows_kept":284,"cut":false,"hidden":false,"merged":[[30,0,32,0],[157,0,159,0],[283,0,287,0],[283,1,287,1],[283,2,287,2],[283,3,287,3],[283,4,287,4],[283,5,287,5],[283,6,287,8],[273,0,277,0],[273,1,277,1],[273,2,277,2],[273,3,277,3],[273,4,277,4],[273,5,277,5],[273,6,277,8],[278,0,282,0],[278,1,282,1],[278,2,282,2],[278,3,282,3],[278,4,282,4],[278,5,282,5],[278,6,282,8],[248,6,252,8],[253,6,257,8],[258,6,262,8],[263,1,267,1],[263,2,267,2],[263,6,267,8],[268,0,272,0],[268,1,272,1],[268,2,272,2],[268,3,272,3],[268,4,272,4],[268,5,272,5],[268,6,272,8],[253,4,257,4],[253,5,257,5],[248,4,252,4],[248,5,252,5],[248,0,262,0],[248,1,262,1],[248,2,262,2],[248,3,262,3],[263,0,267,0],[263,3,267,3],[263,4,267,4],[263,5,267,5],[258,4,262,4],[258,5,262,5],[240,1,244,1],[240,2,244,2],[240,3,244,3],[240,4,244,4],[240,5,244,5],[240,6,244,8],[246,0,246,3],[235,0,239,0],[235,1,239,1],[235,2,239,2],[235,3,239,3],[235,4,239,4],[235,5,239,5],[240,0,244,0],[182,6,186,8],[187,0,191,0],[187,1,191,1],[187,2,191,2],[187,3,191,3],[187,4,191,4],[187,5,191,5],[187,6,191,8],[235,6,239,8],[192,6,196,8],[197,6,201,8],[192,2,196,2],[192,1,196,1],[197,1,201,1],[197,2,201,2],[205,6,209,8],[210,6,214,8],[215,6,219,8],[220,6,224,8],[225,6,229,8],[230,6,234,8],[197,0,201,0],[197,3,201,3],[197,4,201,4],[45,4,49,4],[45,5,49,5],[157,2,158,5],[157,1,158,1],[162,1,176,1],[162,2,176,2],[162,3,176,3],[177,1,181,1],[177,2,181,2],[78,1,82,1],[78,2,82,2],[65,1,69,1],[65,2,69,2],[65,3,69,3],[45,2,49,2],[60,1,64,1],[78,5,82,5],[60,2,64,2],[60,3,64,3],[60,4,64,4],[60,5,64,5],[73,2,77,2],[73,3,77,3],[73,4,77,4],[131,6,135,8],[136,6,140,8],[141,6,145,8],[146,6,150,8],[151,6,155,8],[162,6,166,8],[167,6,171,8],[172,6,176,8],[177,6,181,8],[35,6,39,8],[40,6,44,8],[45,6,49,8],[50,6,54,8],[55,6,59,8],[60,6,64,8],[65,6,69,8],[73,6,77,8],[78,6,82,8],[83,6,87,8],[88,6,92,8],[93,6,97,8],[98,6,102,8],[103,6,107,8],[111,6,115,8],[116,6,120,8],[121,6,125,8],[126,6,130,8],[0,0,0,3],[1,0,1,3],[2,0,2,8],[3,0,3,8],[4,0,4,8],[10,0,10,8],[50,1,54,1],[50,2,54,2],[50,3,54,3],[50,4,54,4],[50,5,54,5],[45,1,49,1],[5,0,5,8],[6,0,6,8],[12,0,12,8],[13,0,13,4],[14,0,14,4],[15,0,15,8],[17,0,17,8],[18,0,18,8],[7,0,7,8],[8,0,8,8],[9,0,9,8],[11,0,11,8],[21,0,21,8],[22,0,22,8],[23,0,23,8],[26,0,26,8],[33,0,33,3],[55,1,59,1],[55,2,59,2],[55,3,59,3],[55,4,59,4],[55,5,59,5],[32,4,32,5],[30,2,30,5],[30,6,31,8],[31,2,31,5],[35,0,39,0],[30,1,32,1],[32,7,32,8],[35,1,39,1],[35,2,39,2],[35,3,39,3],[35,4,39,4],[35,5,39,5],[40,1,44,1],[40,2,44,2],[40,3,44,3],[40,4,44,4],[40,5,44,5],[45,3,49,3],[93,2,97,2],[93,3,97,3],[93,4,97,4],[103,1,107,1],[103,2,107,2],[103,3,107,3],[103,4,107,4],[98,3,102,3],[98,4,102,4],[103,5,107,5],[65,4,69,4],[65,5,69,5],[71,0,71,3],[93,0,97,0],[93,1,97,1],[103,0,107,0],[78,0,82,0],[78,3,82,3],[78,4,82,4],[73,1,77,1],[73,0,77,0],[73,5,77,5],[93,5,97,5],[83,0,87,0],[83,1,87,1],[83,2,87,2],[83,3,87,3],[83,4,87,4],[83,5,87,5],[88,0,92,0],[88,1,92,1],[88,2,92,2],[88,3,92,3],[88,4,92,4],[88,5,92,5],[98,5,102,5],[109,0,109,3],[151,0,155,0],[151,1,155,1],[151,2,155,2],[151,3,155,3],[151,4,155,4],[151,5,155,5],[121,0,125,0],[121,1,125,1],[121,2,125,2],[121,3,125,3],[121,4,125,4],[121,5,125,5],[126,0,130,0],[126,1,130,1],[98,0,102,0],[98,1,102,1],[98,2,102,2],[116,5,120,5],[111,5,115,5],[111,0,120,0],[126,2,130,2],[126,3,130,3],[126,4,130,4],[126,5,130,5],[131,0,135,0],[131,1,135,1],[131,2,135,2],[131,3,135,3],[131,4,135,4],[131,5,135,5],[111,1,115,1],[111,2,115,2],[111,3,115,3],[111,4,115,4],[116,1,120,1],[116,2,120,2],[116,3,120,3],[116,4,120,4],[136,5,140,5],[141,0,145,0],[141,1,145,1],[141,2,145,2],[141,3,145,3],[141,4,145,4],[141,5,145,5],[136,0,140,0],[136,1,140,1],[136,2,140,2],[136,3,140,3],[136,4,140,4],[159,4,159,5],[146,0,150,0],[146,1,150,1],[146,2,150,2],[146,3,150,3],[146,4,150,4],[157,6,159,8],[162,4,166,4],[162,5,166,5],[146,5,150,5],[160,0,160,3],[162,0,176,0],[167,4,171,4],[167,5,171,5],[172,4,176,4],[172,5,176,5],[177,0,181,0],[177,3,181,3],[177,4,181,4],[177,5,181,5],[182,0,186,0],[182,1,186,1],[182,2,186,2],[182,3,186,3],[182,4,186,4],[182,5,186,5],[230,0,234,0],[230,3,234,3],[230,4,234,4],[230,5,234,5],[225,0,229,0],[225,3,229,3],[225,4,229,4],[225,5,229,5],[225,1,229,1],[225,2,229,2],[230,1,234,1],[230,2,234,2],[71,10,71,35],[109,10,109,36],[220,0,224,0],[220,3,224,3],[220,4,224,4],[220,5,224,5],[215,4,219,4],[215,5,219,5],[220,1,224,1],[220,2,224,2],[205,5,209,5],[210,4,214,4],[210,5,214,5],[203,0,203,3],[205,4,209,4],[205,0,219,0],[205,1,219,1],[205,2,219,2],[205,3,219,3],[197,5,201,5],[192,0,196,0],[192,3,196,3],[192,4,196,4],[192,5,196,5]]}
["5. PROJECT DESCRIPTION",null,null,null,null,null,null,null,null,null,null,null,null,null,0,null,"področje",{"$f":"'BASIC INFORMATION'!B29","v":1}]
[null,null,null,null,null,null,null,null,null,null,null,null,null,null,1,null,"podpodročje",{"$f":"'BASIC INFORMATION'!B32","v":0}]
["Justification of the project",null,null,null,null,null,null,null,null,null,null,null,null,null,2]
["Analyse in a comprehensive manner the issue addressed by the project, how the project will contribute to solving the issue and compliance with national and international documents of the relevant area.",null,null,null,null,null,null,null,null,null,null,null,null,null,3,null,"trenutno aktivno področje",1]
[null,null,null,null,null,null,null,null,null,null,null,null,null,null,4,null,"trenutno aktivno podpodročje",0]
["Comprehensive analysis and outline of the issue",null,null,null,null,null,null,null,null,null,null,null,null,null,5]
[null,null,null,null,null,null,null,null,null,null,"Max 3000 characters."]
[]
["Contribution of the project to solving the issue"]
[null,null,null,null,null,null,null,null,null,null,"Max 3000 characters."]
[]
["Compliance with national and international documents of the area under consideration"]
[null,null,null,null,null,null,null,null,null,null,"Max 1000 characters."]
[]
["Objectives of the project"]
[{"$f":"'BASIC INFORMATION'!B33","v":0},null,null,null,null,null,null,null,null,null,"Automatic field"]
[]
["Insofar the specific objectives exist, specify them."]
[null,null,null,null,null,null,null,null,null,null,"Max 500 characters."]
[]
["Target groups"]
["Describe the target groups, their needs, with special emphasis on those, addressed by the project, and expected number of included."]
[null,null,null,null,null,null,null,null,null,null,"Max 1500 characters."]
[]
["The logical coherence of the content of the project and contribution of the project to the achievement of programme outputs"]
[]
["The logical coherence of the project content or substantive thread of the project follows the “read line” of the selected area of the call. First, select to which outcomes the project will contribute, select one or more statistical region (NUTS 3), where the project outcomes will be visible. Also specify the target values of the outcome indicator. You can add up to five new outcomes. For the selected outcome (s) of the project describe at least one key result of the project, specify the indicators and target values of result indicators. Indicate up to five key results of the project for each outcome."]
[]
[]
[]
["GENERAL PROJECT OBJECTIVE\n(= programme outcome)\n","Mark","PROJECT OUTCOME",null,null,null,"KEY PROJECT OUTPUTS\n(description of outputs and its indicator with the target value)"]
[null,null,"(= programme output)"]
[null,null,"Description","Outcome location","Outcome indicator (description and target value)",null,"Description","Output indicator (description and target value)"]
["Area Public health initiatives",null,null,null,null,5,"Number of additional outcomes",null,null,null,"An additional outcome means an additional project outcome that you define yourself, besides those already mentioned in the table set by the programme."]
["sub-area Reducing inequalities between user groups  "]
["Reduced inequalities between user groups",null,"Establishment and implementation of new programmes and services for various user groups.",null,"Number of activities for increasing access for reducing health inequalities (the target value of the indicator at programme level is 10)",null,null,null,null,null,"Max 750 characters for key project outputs description."]
[]
[]
[]
[]
[null,null,"Greater capacity of experts in the field of health and work with vulnerable groups",null,"Number of trained experts (the target value of the indicator at programme level is 500)"]
[]
[]
[]
[]
[]
[]
[]
[]
[]
[]
[]
[]
[]
[]
[]
[]
[]
[]
[]
[]
[]
[]
[]
[]
[]
[]
[]
[]
[]
[]
["Area Public health initiatives",null,null,null,null,5,"Number of additional outcomes",null,null,null,"An additional outcome means an additional project outcome that you define yourself, besides those already mentioned in the table set by the programme."]
["sub-area Prevention of life-style related diseases"]
["Reducing or preventing life-style related diseases",null,"Establishment and implementation of new comprehensive programmes and services for lifestyle related chronic diseases for different groups of users.",null,"The number of activities aimed at the reduction or prevention of lifestyle-related diseases (target value of the indicator at programme level is 15)",null,null,null,null,null,"Max 750 characters for key project outputs description."]
[]
[]
[]
[]
["Reducing or preventing life-style related diseases",null,"Greater capacity of experts for work with vulnerable groups in the field of the prevention of life-style related chronic diseases",null,"Number of trained experts (target value of the indicator at programme level is 300)"]
[]
[]
[]
[]
["Reducing or preventing life-style related diseases"]
[]
[]
[]
[]
["Reducing or preventing life-style related diseases"]
[]
[]
[]
[]
["Reducing or preventing life-style related diseases"]
[]
[]
[]
[]
["Reducing or preventing life-style related diseases"]
[]
[]
[]
[]
["Reducing or preventing life-style related diseases"]
[]
[]
[]
[]
[]
["Area Public health initiatives",null,null,null,null,5,"Number of additional outcomes",null,null,null,"An additional outcome means an additional project outcome that you define yourself, besides those already mentioned in the table set by the programme."]
["sub-area Improved mental health services"]
["Improved mental health services",null,"Improved local capacities in the field of mental health",null,"Number of the established new local structures for mental health (target value of the indicator at programme level is 3)",null,null,null,null,null,"Max 750 characters for key project outputs decription."]
[]
[]
[]
[]
[null,null,"Greater capacity in the field of mental health professionals in primary health care and other professionals.",null,"Number of trained employees (target value of the indicator at programme level is 100)"]
[]
[]
[]
[]
["Improved mental health services"]
[]
[]
[]
[]
["Improved mental health services"]
[]
[]
[]
[]
["Improved mental health services"]
[]
[]
[]
[]
["Improved mental health services"]
[]
[]
[]
[]
["Improved mental health services"]
[]
[]
[]
[]
["Improved mental health services"]
[]
[]
[]
[]
["Improved mental health services"]
[]
[]
[]
[]
[]
["GENERAL PROJECT OBJECTIVE\n(= programme outcome)\n","Mark","PROJECT OUTCOME\n(= programme output)\n",null,null,null,"KEY PROJECT OUTPUTS\n(description of outputs and its indicator with the target value)\n"]
[]
[null,null,"Description","Outcome location","Outcome indicator (description and target value)"]
["Area Gender Equality",null,null,null,null,5,"Number of additional outcomes",null,null,null,"An additional outcome means an additional project outcome that you define yourself, besides those already mentioned in the table set by the programme."]
["Subarea Economic decision-making"]
["Greater awareness on gender equality and incentive for research in this area",null,"Increase understanding of equal/unequal relations of power between men and women for the purpose of identification of appropriate responses to the imbalances that persist in the sexually-related structures of power in society",null,"Percentage of the reached target group (target value of the indicator is 50%)",null,null,null,null,null,"Max 750 characters for key project outputs description."]
[]
[]
[]
[]
[null,null,null,null,"Number of implemented policies (action plans, actions) (target value of the indicator is 2)"]
[]
[]
[]
[]
[null,null,null,null,"Number of identified and evaluated good practices (target value of the indicator is 2)"]
[]
[]
[]
[]
["Greater awareness on gender equality and incentive for research in this area"]
[]
[]
[]
[]
["Greater awareness on gender equality and incentive for research in this area"]
[]
[]
[]
[]
["Greater awareness on gender equality and incentive for research in this area"]
[]
[]
[]
[]
["Greater awareness on gender equality and incentive for research in this area"]
[]
[]
[]
[]
["Greater awareness on gender equality and incentive for research in this area"]
[]
[]
[]
[]
[]
["Area Gender Equality",null,null,null,null,5,"Number of additional outcomes",null,null,null,"Dodatni učinek pomeni poleg v tabeli že navedenih učinkov, ki jih določa program, še dodatni učinki vašega projekta, ki jih predvidite sami"]
["Subarea Political decision-making"]
["Greater awareness on gender equality and incentive for research in this area",null,"Increase understanding of equal/unequal relations of power between men and women for the purpose of identification of appropriate responses to the imbalances that persist in the sexually-related structures of power in society",null,"Percentage of the reached target group (target value of the indicator is 50%)",null,null,null,null,null,"Max 750 characters for key project outputs"]
[]
[]
[]
[]
[null,null,null,null,"Number of implemented policies (action plans, actions) (target value of the indicator is 2)"]
[]
[]
[]
[]
[null,null,null,null,"Number of identified and evaluated good practices (target value of the indicator is 2)"]
[]
[]
[]
[]
["Greater awareness on gender equality and incentive for research in this area"]
[]
[]
[]
[]
["Greater awareness on gender equality and incentive for research in this area"]
[]
[]
[]
[]
["Greater awareness on gender equality and incentive for research in this area"]
[]
[]
[]
[]
["Greater awareness on gender equality and incentive for research in this area"]
[]
[]
[]
[]
["Greater awareness on gender equality and incentive for research in this area"]
[]
[]
[]
[]
[]
["Area Gender Equality",null,null,null,null,5,"Number of additional outcomes",null,null,null,"Dodatni učinek pomeni poleg v tabeli že navedenih učinkov, ki jih določa program, še dodatni učinki vašega projekta, ki jih predvidite sami"]
["Subarea Promoting work-life balance"]
["Greater awareness on gender equality and incentive for research in this area",null,"Increase understanding of equal/unequal relations of power between men and women for the purpose of identification of appropriate responses to the imbalances that persist in the sexually-related structures of power in society",null,"Percentage of the reached target group (target value of the indicator is 50%)",null,null,null,null,null,"Max 750 characters for key project outputs description."]
[]
[]
[]
[]
[null,null,null,null,"Number of implemented policies (action plans, actions) (target value of the indicator is 2)"]
[]
[]
[]
[]
[null,null,null,null,"Number of identified and evaluated good practices (target value of the indicator is 2)"]
[]
[]
[]
[]
["Greater awareness on gender equality and incentive for research in this area"]
[]
[]
[]
[]
["Greater awareness on gender equality and incentive for research in this area"]
[]
[]
[]
[]
["Greater awareness on gender equality and incentive for research in this area"]
[]
[]
[]
[]
["Greater awareness on gender equality and incentive for research in this area"]
[]
[]
[]
[]
["Greater awareness on gender equality and incentive for research in this area"]

{"sheet":"Project work plan","index":9,"n_rows":116,"n_cols":15,"rows_kept":116,"cut":false,"hidden":false,"merged":[[101,0,101,7],[83,0,84,0],[83,2,83,7],[66,2,66,4],[82,2,82,4],[69,5,70,5],[3,2,3,4],[4,9,5,13],[103,0,103,4],[105,0,105,4],[4,2,4,4],[34,2,34,4],[19,2,19,5],[85,6,86,6],[36,2,36,7],[37,2,38,2],[51,0,52,0],[51,2,51,7],[52,2,52,7],[50,2,50,4],[69,6,70,6],[69,7,70,7],[110,0,110,7],[111,0,111,7],[53,0,54,0],[53,1,54,1],[53,2,54,2],[53,6,54,6],[53,7,54,7],[67,0,68,0],[67,2,67,7],[68,2,68,7],[69,0,70,0],[69,1,70,1],[69,2,70,2],[69,3,69,4],[84,2,84,7],[109,0,109,4],[2,0,2,7],[100,0,100,7],[106,0,106,7],[107,0,107,7],[6,3,6,4],[6,5,7,5],[6,6,7,6],[21,3,21,4],[21,5,22,5],[6,7,7,7],[85,0,86,0],[85,1,86,1],[85,2,86,2],[85,3,85,4],[85,5,86,5],[85,7,86,7],[114,0,114,7],[115,0,115,7],[18,0,18,1],[21,6,22,6],[37,3,37,4],[37,5,38,5],[37,6,38,6],[35,0,36,0],[37,0,38,0],[37,1,38,1],[53,3,53,4],[53,5,54,5],[37,7,38,7],[21,7,22,7],[35,2,35,7],[113,0,113,4]]}
["Project work plan",null,null,null,null,null,null,null,null,null,null,null,null,null,0]
[null,null,null,null,null,null,null,null,null,null,null,null,null,null,1]
["Please describe the working sets (WS) and activities within individual working sets. For each activity, please provide all of the planned achieved results and their indicators with target values. Please indicate who will be involved in an individual activity (the applicant, Partner 1, Partner 2, etc.). Specify the cost of individual activities, and also the country of the implementation of activities. Obligatory for each project are at least two working sets: WS1 – Management and coordination and WS2 - Information and publicity. Project may provide up to six working sets in the project work plan.",null,null,null,null,null,null,null,null,null,null,null,null,null,2]
[null,null,"Number of additiona Working sets",null,null,4,null,null,null,"Select the number of additional WS. An additional WS means and additional WS that you define yourself, besides the mandatory ones. ",null,null,null,null,3]
[null,null,"Number of additional activities in Working set Management and coordination",null,null,0,null,null,null,"Select number of additiona activities in WS Management and coordination",null,null,null,null,4]
["WS 1","WS name","Management and coordination",null,null,null,null,null,null,null,null,null,null,null,5]
[null,"WS description",null,"All project outputs",null,"Applicant and/or partner ","Foreseen costs","Country of the implementation of activity*",null,null,null,null,null,null,6]
[null,"Name of the activity","Description of the activity","Description","Indicators and target value",null,null,null,null,null,null,null,null,null,7]
["ACT 1.1",null,null,null,null,null,null,null,null,"Max 750 characters for the description of the activity and max 200 characters for the decription of project outputs.",null,null,null,null,8]
["ACT 1.2",null,null,null,null,null,null,null,null,"Max 750 characters for the description of the activity and max 200 characters for the decription of project outputs.",null,null,null,null,9]
["ACT 1.3",null,null,null,null,null,null,null,null,"Max 750 characters for the description of the activity and max 200 characters for the decription of project outputs.",null,null,null,null,10]
["ACT 1.4",null,null,null,null,null,null,null,null,"Max 750 characters for the description of the activity and max 200 characters for the decription of project outputs."]
["ACT 1.5",null,null,null,null,null,null,null,null,"Max 750 characters for the description of the activity and max 200 characters for the decription of project outputs."]
["ACT 1.6",null,null,null,null,null,null,null,null,"Max 750 characters for the description of the activity and max 200 characters for the decription of project outputs."]
["ACT 1.7",null,null,null,null,null,null,null,null,"Max 750 characters for the description of the activity and max 200 characters for the decription of project outputs."]
["ACT 1.8",null,null,null,null,null,null,null,null,"Max 750 characters for the description of the activity and max 200 characters for the decription of project outputs."]
["ACT 1.9",null,null,null,null,null,null,null,null,"Max 750 characters for the description of the activity and max 200 characters for the decription of project outputs."]
["ACT 1.10",null,null,null,null,null,null,null,null,"Max 750 characters for the description of the activity and max 200 characters for the decription of project outputs."]
[]
[null,null,"Number of additional activities in Working set Information and publicity",null,null,null,0,null,null,"Select the number of activities in the WS (number of additional activities, beside the mandatory one)."]
["WS 2","WS name","Information and publicity"]
[null,"WS description",null,"All project outputs",null,"Applicant and/or partner ","Foreseen costs","Country of the implementation of activity*"]
[null,"Name of the activity","Description of the activity","Description","Indicators and target value"]
["ACT 2.1",null,null,null,null,null,null,null,null,"Max 750 characters for the description of the activity and max 200 characters for the decription of project outputs."]
["ACT 2.2",null,null,null,null,null,null,null,null,"Max 750 characters for the description of the activity and max 200 characters for the decription of project outputs."]
["ACT 2.3",null,null,null,null,null,null,null,null,"Max 750 characters for the description of the activity and max 200 characters for the decription of project outputs."]
["ACT 2.4",null,null,null,null,null,null,null,null,"Max 750 characters for the description of the activity and max 200 characters for the decription of project outputs."]
["ACT 2.5",null,null,null,null,null,null,null,null,"Max 750 characters for the description of the activity and max 200 characters for the decription of project outputs."]
["ACT 2.6",null,null,null,null,null,null,null,null,"Max 750 characters for the description of the activity and max 200 characters for the decription of project outputs."]
["ACT 2.7",null,null,null,null,null,null,null,null,"Max 750 characters for the description of the activity and max 200 characters for the decription of project outputs."]
["ACT 2.8",null,null,null,null,null,null,null,null,"Max 750 characters for the description of the activity and max 200 characters for the decription of project outputs."]
["ACT 2.9",null,null,null,null,null,null,null,null,"Max 750 characters for the description of the activity and max 200 characters for the decription of project outputs."]
["ACT 2.10",null,null,null,null,null,null,null,null,"Max 750 characters for the description of the activity and max 200 characters for the decription of project outputs."]
[]
[null,null,"Number of additional activities in Working set 3",null,null,0,null,null,null,"Select the number of activities in the WS (number of additional activities, beside the mandatory one)."]
["WS 3","WS name",null,null,null,null,null,null,null,"Max 100 characters."]
[null,"WS description",null,null,null,null,null,null,null,"Max 1000 characters."]
[null,"Name of the activity","Description of the activity","All project outputs",null,"Applicant and/or partner","Foreseen costs","Country of the implementation of activity*"]
[null,null,null,"Description","Indicators and target value"]
["ACT 3.1",null,null,null,null,null,null,null,null,"Max 750 characters for the description of the activity and max 200 characters for the decription of project outputs."]
["ACT 3.2",null,null,null,null,null,null,null,null,"Max 750 characters for the description of the activity and max 200 characters for the decription of project outputs."]
["ACT 3.3",null,null,null,null,null,null,null,null,"Max 750 characters for the description of the activity and max 200 characters for the decription of project outputs."]
["ACT 3.4",null,null,null,null,null,null,null,null,"Max 750 characters for the description of the activity and max 200 characters for the decription of project outputs."]
["ACT 3.5",null,null,null,null,null,null,null,null,"Max 750 characters for the description of the activity and max 200 characters for the decription of project outputs."]
["ACT 3.6",null,null,null,null,null,null,null,null,"Max 750 characters for the description of the activity and max 200 characters for the decription of project outputs."]
["ACT 3.7",null,null,null,null,null,null,null,null,"Max 750 characters for the description of the activity and max 200 characters for the decription of project outputs."]
["ACT 3.8",null,null,null,null,null,null,null,null,"Max 750 characters for the description of the activity and max 200 characters for the decription of project outputs."]
["ACT 3.9",null,null,null,null,null,null,null,null,"Max 750 characters for the description of the activity and max 200 characters for the decription of project outputs."]
["ACT 3.10",null,null,null,null,null,null,null,null,"Max 750 characters for the description of the activity and max 200 characters for the decription of project outputs."]
[]
[null,null,"Number of additional activities in Working set 4",null,null,9,null,null,null,"Select the number of activities in the WS (number of additional activities, beside the mandatory one)."]
["WS 4","WS name",null,null,null,null,null,null,null,"Max 100 characters."]
[null,"WS description",null,null,null,null,null,null,null,"Max 1000 characters."]
[null,"Name of the activity","Description of the activity","All project outputs",null,"Applicant and/or partner","Foreseen costs","Country of the implementation of activity*"]
[null,null,null,"Description","Indicators and target value"]
["ACT 4.1",null,null,null,null,null,null,null,null,"Max 750 characters for the description of the activity and max 200 characters for the decription of project outputs."]
["ACT 4.2",null,null,null,null,null,null,null,null,"Max 750 characters for the description of the activity and max 200 characters for the decription of project outputs."]
["ACT 4.3",null,null,null,null,null,null,null,null,"Max 750 characters for the description of the activity and max 200 characters for the decription of project outputs."]
["ACT 4.4",null,null,null,null,null,null,null,null,"Max 750 characters for the description of the activity and max 200 characters for the decription of project outputs."]
["ACT 4.5",null,null,null,null,null,null,null,null,"Max 750 characters for the description of the activity and max 200 characters for the decription of project outputs."]
["ACT 4.6",null,null,null,null,null,null,null,null,"Max 750 characters for the description of the activity and max 200 characters for the decription of project outputs."]
["ACT 4.7",null,null,null,null,null,null,null,null,"Max 750 characters for the description of the activity and max 200 characters for the decription of project outputs."]
["ACT 4.8",null,null,null,null,null,null,null,null,"Max 750 characters for the description of the activity and max 200 characters for the decription of project outputs."]
["ACT 4.9",null,null,null,null,null,null,null,null,"Max 750 characters for the description of the activity and max 200 characters for the decription of project outputs."]
["ACT 4.10",null,null,null,null,null,null,null,null,"Max 750 characters for the description of the activity and max 200 characters for the decription of project outputs."]
[]
[null,null,"Number of additional activities in Working set 5",null,null,0,null,null,null,"Select the number of activities in the WS (number of additional activities, beside the mandatory one)."]
["WS 5","WS name",null,null,null,null,null,null,null,"Max 100 characters."]
[null,"WS description",null,null,null,null,null,null,null,"Max 1000 characters."]
[null,"Name of the activity","Description of the activity","All project outputs",null,"Applicant and/or partner","Foreseen costs","Country of the implementation of activity*"]
[null,null,null,"Description","Indicators and target value"]
["ACT 5.1",null,null,null,null,null,null,null,null,"Max 750 characters for the description of the activity and max 200 characters for the decription of project outputs."]
["ACT 5.2",null,null,null,null,null,null,null,null,"Max 750 characters for the description of the activity and max 200 characters for the decription of project outputs."]
["ACT 5.3",null,null,null,null,null,null,null,null,"Max 750 characters for the description of the activity and max 200 characters for the decription of project outputs."]
["ACT 5.4",null,null,null,null,null,null,null,null,"Max 750 characters for the description of the activity and max 200 characters for the decription of project outputs."]
["ACT 5.5",null,null,null,null,null,null,null,null,"Max 750 characters for the description of the activity and max 200 characters for the decription of project outputs."]
["ACT 5.6",null,null,null,null,null,null,null,null,"Max 750 characters for the description of the activity and max 200 characters for the decription of project outputs."]
["ACT 5.7",null,null,null,null,null,null,null,null,"Max 750 characters for the description of the activity and max 200 characters for the decription of project outputs."]
["ACT 5.8",null,null,null,null,null,null,null,null,"Max 750 characters for the description of the activity and max 200 characters for the decription of project outputs."]
["ACT 5.9",null,null,null,null,null,null,null,null,"Max 750 characters for the description of the activity and max 200 characters for the decription of project outputs."]
["ACT 5.10",null,null,null,null,null,null,null,null,"Max 750 characters for the description of the activity and max 200 characters for the decription of project outputs."]
[]
[null,null,"Number of additional activities in Working set 6",null,null,0,null,null,null,"Select the number of activities in the WS (number of additional activities, beside the mandatory one)."]
["WS 6","WS name",null,null,null,null,null,null,null,"Max 100 characters."]
[null,"WS description",null,null,null,null,null,null,null,"Max 1000 characters."]
[null,"Name of the activity","Description of the activity","All project outputs",null,"Applicant and/or partner","Foreseen costs","Country of the implementation of activity*"]
[null,null,null,"Description","Indicators and target value"]
["ACT 6.1",null,null,null,null,null,null,null,null,"Max 750 characters for the description of the activity and max 200 characters for the decription of project outputs."]
["ACT 6.2",null,null,null,null,null,null,null,null,"Max 750 characters for the description of the activity and max 200 characters for the decription of project outputs."]
["ACT 6.3",null,null,null,null,null,null,null,null,"Max 750 characters for the description of the activity and max 200 characters for the decription of project outputs."]
["ACT 6.4",null,null,null,null,null,null,null,null,"Max 750 characters for the description of the activity and max 200 characters for the decription of project outputs."]
["ACT 6.5",null,null,null,null,null,null,null,null,"Max 750 characters for the description of the activity and max 200 characters for the decription of project outputs."]
["ACT 6.6",null,null,null,null,null,null,null,null,"Max 750 characters for the description of the activity and max 200 characters for the decription of project outputs."]
["ACT 6.7",null,null,null,null,null,null,null,null,"Max 750 characters for the description of the activity and max 200 characters for the decription of project outputs."]
["ACT 6.8",null,null,null,null,null,null,null,null,"Max 750 characters for the description of the activity and max 200 characters for the decription of project outputs."]
["ACT 6.9",null,null,null,null,null,null,null,null,"Max 750 characters for the description of the activity and max 200 characters for the decription of project outputs."]
["ACT 6.10",null,null,null,null,null,null,null,null,"Max 750 characters for the description of the activity and max 200 characters for the decription of project outputs."]
[]
[]
[]
["* The eligible area of the implementation of the activity is the area of the Republic of Slovenia and the Donor State. If you think that the activity is essential for the implementation of the project and cannot be implemented within the eligible area, give an adequate justification."]
[null,null,null,null,null,null,null,null,null,"Največ 750 znakov"]
[]
["Innovativeness and sustainability of project results"]
[]
["New solutions"]
["Describe how the proposed project brings new solutions which go beyond the existing practice in the selected area in Slovenia."]
[null,null,null,null,null,null,null,null,null,"Max 2500 characters."]
[]
["Financial and institutional sustainability"]
["Explain how the sustainability of projects results in the technical and institutional sense will be provided. Do you plan to continue with certain project activities after the closure of co-financing?"]
[null,null,null,null,null,null,null,null,null,"Max 2500 characters."]
[]
["Long-term impact on the target group"]
["Describe the long-term impacts of the project on the target group. How will the use of project results be enabled for various target groups and other potential stakeholders?"]
[null,null,null,null,null,null,null,null,null,"Max 2500 characters."]

{"sheet":"data_del_nacrt","index":10,"n_rows":9,"n_cols":6,"rows_kept":9,"cut":false,"hidden":true,"merged":[]}
[]
[null,"delni",null,null,"celotno"]
["ds","dej 2","dej 10"]
[1,9,18,"F5",null,"G19"]
[2,25,33,"G20"]
[3,41,49,"F35",35,50]
[4,57,65,"F51",51,66]
[5,73,81,"F67",67,82]
[6,89,97,"F83",83,98]

{"sheet":"EQUIPMENT   ","index":11,"n_rows":158,"n_cols":14,"rows_kept":158,"cut":false,"hidden":false,"merged":[[0,0,0,3],[154,1,154,4],[155,1,155,4],[156,1,156,4],[157,1,157,4],[150,0,150,2],[149,0,149,3],[152,0,152,4],[158,0,158,4],[132,0,138,0],[132,1,132,2],[132,3,132,4],[133,1,133,2],[133,3,133,4],[134,1,134,2],[134,3,134,4],[135,1,135,2],[135,3,135,4],[136,1,136,2],[136,3,136,4],[137,1,137,2],[137,3,137,4],[138,1,138,2],[138,3,138,4],[139,0,145,0],[118,0,124,0],[118,1,118,2],[118,3,118,4],[119,1,119,2],[119,3,119,4],[120,1,120,2],[120,3,120,4],[121,1,121,2],[121,3,121,4],[122,1,122,2],[122,3,122,4],[123,1,123,2],[123,3,123,4],[124,1,124,2],[124,3,124,4],[145,1,145,2],[141,3,141,4],[142,3,142,4],[145,3,145,4],[143,1,143,2],[143,3,143,4],[144,1,144,2],[141,1,141,2],[111,0,117,0],[111,1,111,2],[111,3,111,4],[112,1,112,2],[112,3,112,4],[113,1,113,2],[113,3,113,4],[114,1,114,2],[114,3,114,4],[115,1,115,2],[115,3,115,4],[116,1,116,2],[116,3,116,4],[117,1,117,2],[117,3,117,4],[90,0,96,0],[90,1,90,2],[90,3,90,4],[91,1,91,2],[91,3,91,4],[92,1,92,2],[92,3,92,4],[93,1,93,2],[93,3,93,4],[94,1,94,2],[94,3,94,4],[95,1,95,2],[95,3,95,4],[96,1,96,2],[96,3,96,4],[83,0,89,0],[83,1,83,2],[83,3,83,4],[84,1,84,2],[84,3,84,4],[85,1,85,2],[85,3,85,4],[86,1,86,2],[86,3,86,4],[87,1,87,2],[87,3,87,4],[88,1,88,2],[88,3,88,4],[89,1,89,2],[89,3,89,4],[76,0,82,0],[76,1,76,2],[76,3,76,4],[77,1,77,2],[77,3,77,4],[78,1,78,2],[78,3,78,4],[79,1,79,2],[79,3,79,4],[80,1,80,2],[80,3,80,4],[81,1,81,2],[81,3,81,4],[82,1,82,2],[82,3,82,4],[69,0,75,0],[69,1,69,2],[69,3,69,4],[70,1,70,2],[70,3,70,4],[71,1,71,2],[71,3,71,4],[72,1,72,2],[72,3,72,4],[73,1,73,2],[73,3,73,4],[74,1,74,2],[74,3,74,4],[75,1,75,2],[75,3,75,4],[104,0,110,0],[104,1,104,2],[104,3,104,4],[105,1,105,2],[105,3,105,4],[106,1,106,2],[106,3,106,4],[107,1,107,2],[107,3,107,4],[108,1,108,2],[108,3,108,4],[109,1,109,2],[109,3,109,4],[110,1,110,2],[110,3,110,4],[97,0,103,0],[97,1,97,2],[97,3,97,4],[98,1,98,2],[98,3,98,4],[99,1,99,2],[99,3,99,4],[100,1,100,2],[100,3,100,4],[101,1,101,2],[101,3,101,4],[102,1,102,2],[102,3,102,4],[103,1,103,2],[103,3,103,4],[52,0,56,0],[52,1,52,2],[52,3,52,4],[53,1,53,2],[53,3,53,4],[54,1,54,2],[54,3,54,4],[55,1,55,2],[55,3,55,4],[56,1,56,2],[56,3,56,4],[27,0,31,0],[27,1,27,2],[27,3,27,4],[28,1,28,2],[28,3,28,4],[42,0,46,0],[42,1,42,2],[42,3,42,4],[43,1,43,2],[43,3,43,4],[44,1,44,2],[44,3,44,4],[45,1,45,2],[45,3,45,4],[46,1,46,2],[46,3,46,4],[29,1,29,2],[29,3,29,4],[30,1,30,2],[30,3,30,4],[31,1,31,2],[31,3,31,4],[39,3,39,4],[40,1,40,2],[22,0,26,0],[22,1,22,2],[22,3,22,4],[23,1,23,2],[23,3,23,4],[24,1,24,2],[24,3,24,4],[25,1,25,2],[25,3,25,4],[26,1,26,2],[26,3,26,4],[16,3,16,4],[17,0,21,0],[17,1,17,2],[17,3,17,4],[18,1,18,2],[18,3,18,4],[19,1,19,2],[19,3,19,4],[20,1,20,2],[20,3,20,4],[21,1,21,2],[21,3,21,4],[40,3,40,4],[41,1,41,2],[41,3,41,4],[7,0,11,0],[7,1,7,2],[7,3,7,4],[8,1,8,2],[8,3,8,4],[9,1,9,2],[9,3,9,4],[10,1,10,2],[10,3,10,4],[11,1,11,2],[11,3,11,4],[12,0,16,0],[12,1,12,2],[12,3,12,4],[13,1,13,2],[13,3,13,4],[14,1,14,2],[14,3,14,4],[15,1,15,2],[15,3,15,4],[16,1,16,2],[50,1,50,2],[50,3,50,4],[51,1,51,2],[51,3,51,4],[32,0,36,0],[32,1,32,2],[32,3,32,4],[33,1,33,2],[33,3,33,4],[34,1,34,2],[34,3,34,4],[35,1,35,2],[35,3,35,4],[36,1,36,2],[36,3,36,4],[37,0,41,0],[37,1,37,2],[37,3,37,4],[48,3,48,4],[49,1,49,2],[49,3,49,4],[38,3,38,4],[38,1,38,2],[39,1,39,2],[4,0,4,4],[66,0,66,4],[148,0,148,4],[65,0,65,4],[146,0,146,2],[57,0,62,0],[57,1,57,2],[58,1,58,2],[59,1,59,2],[60,1,60,2],[61,1,61,2],[62,1,62,2],[47,0,51,0],[47,1,47,2],[47,3,47,4],[48,1,48,2],[125,0,131,0],[125,1,125,2],[142,1,142,2],[128,3,128,4],[129,1,129,2],[129,3,129,4],[130,1,130,2],[130,3,130,4],[125,3,125,4],[126,1,126,2],[126,3,126,4],[127,1,127,2],[127,3,127,4],[144,3,144,4],[57,3,57,4],[58,3,58,4],[59,3,59,4],[60,3,60,4],[61,3,61,4],[62,3,62,4],[131,1,131,2],[131,3,131,4],[140,3,140,4],[139,1,139,2],[139,3,139,4],[140,1,140,2],[128,1,128,2]]}
["6. EQUIPMENT",null,null,null,null,null,null,null,null,null,null,null,null,0]
[null,null,null,null,null,null,null,null,null,null,null,null,null,1]
[null,null,null,null,null,null,null,null,null,null,null,null,null,2]
["The cost of depreciation",null,null,null,null,null,null,null,null,null,null,null,null,3]
["If you claim depreciation costs of new and/or used equipment, please fill in the table for each type of equipment. ",null,null,null,null,null,"If you claim depreciation costs of new and/or used equipment, it is mandatory to fill in the field below.",null,null,null,null,null,null,4]
[null,null,null,null,null,null,null,null,null,null,null,null,null,5]
["Equipment",null,null,"Additonal tables for equipement",1,null,"Select from the list",null,null,null,null,null,null,6]
[1,"a) Type and description of the new or used equipment",null,null,null,null,"Max 500 characters.",null,null,null,null,null,null,7]
[null,"b) Cost estimate of the depreciation",null,null,null,null,null,null,null,null,null,null,null,9]
[null,"c) The owner (s) of the equipment",null,null,null,null,"Max 500 characters.",null,null,null,null,null,null,10]
[null,"d) The justification of claim of depreciation costs",null,null,null,null,"In the justification please define how depreciation corresponds to the duration of the project and the actual rate of use for the purposes of the project."]
[null,"e) A brief description of the technical/technological characteristics and the planned amounts of new or used equipment",null,null,null,null,"Maximum 1000 characters"]
[2,"a) Type and description of the new or used equipment",null,null,null,null,"Max 500 characters."]
[null,"b) Cost estimate of the depreciation"]
[null,"c) The owner (s) of the equipment",null,null,null,null,"Max 500 characters."]
[null,"d) The justification of claim of depreciation costs",null,null,null,null,"In the justification please define how depreciation corresponds to the duration of the project and the actual rate of use for the purposes of the project."]
[null,"e) A brief description of the technical/technological characteristics and the planned amounts of new or used equipment",null,null,null,null,"Max 1000 characters."]
[3,"a) Type and description of the new or used equipment",null,null,null,null,"Maximum 500 characters"]
[null,"b) Cost estimate of the depreciation"]
[null,"c) The owner (s) of the equipment",null,null,null,null,"Max 500 characters."]
[null,"d) The justification of claim of depreciation costs",null,null,null,null,"In the justification please define how depreciation corresponds to the duration of the project and the actual rate of use for the purposes of the project."]
[null,"e) A brief description of the technical/technological characteristics and the planned amounts of new or used equipment",null,null,null,null,"Max 1000 characters."]
[4,"a) Type and description of the new or used equipment",null,null,null,null,"Max 500 characters."]
[null,"b) Cost estimate of the depreciation"]
[null,"c) The owner (s) of the equipment",null,null,null,null,"Max 500 characters."]
[null,"d) The justification of claim of depreciation costs",null,null,null,null,"In the justification please define how depreciation corresponds to the duration of the project and the actual rate of use for the purposes of the project."]
[null,"e) A brief description of the technical/technological characteristics and the planned amounts of new or used equipment",null,null,null,null,"Max 1000 characters."]
[5,"a) Type and description of the new or used equipment",null,null,null,null,"Max 500 characters."]
[null,"b) Cost estimate of the depreciation"]
[null,"c) The owner (s) of the equipment",null,null,null,null,"Max 500 characters."]
[null,"d) The justification of claim of depreciation costs",null,null,null,null,"In the justification please define how depreciation corresponds to the duration of the project and the actual rate of use for the purposes of the project."]
[null,"e) A brief description of the technical/technological characteristics and the planned amounts of new or used equipment",null,null,null,null,"Max 1000 characters."]
[6,"a) Type and description of the new or used equipment",null,null,null,null,"Max 500 characters."]
[null,"b) Cost estimate of the depreciation"]
[null,"c) The owner (s) of the equipment",null,null,null,null,"Max 500 characters."]
[null,"d) The justification of claim of depreciation costs",null,null,null,null,"In the justification please define how depreciation corresponds to the duration of the project and the actual rate of use for the purposes of the project."]
[null,"e) A brief description of the technical/technological characteristics and the planned amounts of new or used equipment",null,null,null,null,"Max 1000 characters."]
[7,"a) Type and description of the new or used equipment",null,null,null,null,"Max 500 characters."]
[null,"b) Cost estimate of the depreciation"]
[null,"c) The owner (s) of the equipment",null,null,null,null,"Max 500 characters."]
[null,"d) The justification of claim of depreciation costs",null,null,null,null,"In the justification please define how depreciation corresponds to the duration of the project and the actual rate of use for the purposes of the project."]
[null,"e) A brief description of the technical/technological characteristics and the planned amounts of new or used equipment",null,null,null,null,"Max 1000 characters."]
[8,"a) Type and description of the new or used equipment",null,null,null,null,"Max 500 characters."]
[null,"b) Cost estimate of the depreciation"]
[null,"c) The owner (s) of the equipment",null,null,null,null,"Max 500 characters."]
[null,"d) The justification of claim of depreciation costs",null,null,null,null,"In the justification please define how depreciation corresponds to the duration of the project and the actual rate of use for the purposes of the project."]
[null,"e) A brief description of the technical/technological characteristics and the planned amounts of new or used equipment",null,null,null,null,"Max1000 characters."]
[9,"a) Type and description of the new or used equipment",null,null,null,null,"Maximum 500 characters"]
[null,"b) Cost estimate of the depreciation"]
[null,"c) The owner (s) of the equipment",null,null,null,null,"Max 500 characters."]
[null,"d) The justification of claim of depreciation costs",null,null,null,null,"In the justification please define how depreciation corresponds to the duration of the project and the actual rate of use for the purposes of the project."]
[null,"e) A brief description of the technical/technological characteristics and the planned amounts of new or used equipment",null,null,null,null,"Max 1000 characters."]
[10,"a) Type and description of the new or used equipment",null,null,null,null,"Max 500 characters."]
[null,"b) Cost estimate of the depreciation"]
[null,"c) The owner (s) of the equipment",null,null,null,null,"Max 500 characters."]
[null,"d) The justification of claim of depreciation costs",null,null,null,null,"In the justification please define how depreciation corresponds to the duration of the project and the actual rate of use for the purposes of the project."]
[null,"e) A brief description of the technical/technological characteristics and the planned amounts of new or used equipment",null,null,null,null,"Max 1000 characters."]
[11,"a) Type and description of the new or used equipment",null,null,null,null,"Max 500 characters."]
[null,"b) Cost estimate of the depreciation"]
[null,"c) The owner (s) of the equipment",null,null,null,null,"Max 500 characters."]
[null,"d) The justification of claim of depreciation costs",null,null,null,null,"In the justification please define how depreciation corresponds to the duration of the project and the actual rate of use for the purposes of the project."]
[null,"e) A brief description of the technical/technological characteristics and the planned amounts of new or used equipment",null,null,null,null,"Max 1000 characters."]
[null,"f) Kratek opis tehničnih/tehnoloških značilnosti in načrtovanih količin nove ali rabljene opreme",null,"Etiam lacinia odio vel pulvinar eleifend. Nunc vulputate auctor pulvinar. Sed vestibulum condimentum condimentum. Cras vulputate non risus in euismod. Duis auctor iaculis ultricies. Ut quis volutpat ligula, quis vestibulum et tortor. Morbi a bibendum velit. Donec in dapibus diam, in convallis velit. Nullam mauris dui, facilisis nec tellus ut, rhoncus dignissim massa. Mauris quis mattis arcu. Nulla feugiat ante lorem, sed hendrerit nisl lobortis sed. Aliquam vel nisi feugiat, variu enim a, facil. Etiam lacinia odio vel pulvinar eleifend. Nunc vulputate auctor pulvinar. Sed vestibulum condimentum condimentum. Cras vulputate non risus in euismod. Duis auctor iaculis ultricies. Ut quis volutpat ligula, quis vestibulum et tortor. Morbi a bibendum velit. Donec in dapibus diam, in convallis velit. Nullam mauris dui, facilisis nec tellus ut, rhoncus dignissim massa. Mauris quis mattis arcu. Nulla feugiat ante lorem, sed hendrerit nisl lobortis sed. Aliquam vel nisi feugiat, variu enim a, facil.",null,null,"Največ 1000 znakov"]
[]
[]
["Purchase of new equipment for which the reimbursement of the entire purchase price is claimed within the project"]
["If you are planning to purchase new equipment, for which you will claim reimbursement of the purchase price within the project, fill in the table for each type of equipment. The eligible cost of purchasing new equipment can represent a maximum of 30% of the total eligible costs of the project. ",null,null,null,null,null,"If you are planning to purchase new equipment, for which you will claim reimbursement of the purchase price within the project, it is mandatory to fill in the field below."]
[]
["Equipment",null,null,"Number of additional tables",1,null,"Select from the list"]
[1,"a) Type, description and planned quantities of the new equipment",null,null,null,null,"Max 500 characters."]
[null,"b) Assessment of the costs of purchasing new equipment"]
[null,"c) Estimation of the cost of maintenance and insurance of the new equipment in the duration of the project"]
[null,"d) Justification of purchasing new equipment ",null,null,null,null,"Max 1000 characters."]
[null,"e) Manner of ensuring meeting the specific conditions pertaining to the purchase of new equipment after the approval of the final project report in the five-year period",null,null,null,null,"Max 1000 characters."]
[null,"f) Owner (s) of the new equipment after purchase",null,null,null,null,"In the justification of the purchase please indicate why it is an integral and necessary part of the equipment for the implementation of the project and why it is essential for the achievement of the objectives of the project."]
[null,"g) A brief description of the technical/technological characteristics ",null,null,null,null,"Max 1000 characters."]
[2,"a) Type, description and planned quantities of the new equipment",null,null,null,null,"Max 500 characters."]
[null,"b) Assessment of the costs of purchasing new equipment"]
[null,"c) Estimation of the cost of maintenance and insurance of the new equipment in the duration of the project"]
[null,"d) Justification of purchasing new equipment ",null,null,null,null,"Max 1000 characters."]
[null,"e) Manner of ensuring meeting the specific conditions pertaining to the purchase of new equipment after the approval of the final project report in the five-year period",null,null,null,null,"Max 1000 characters."]
[null,"f) Owner (s) of the new equipment after purchase",null,null,null,null,"In the justification of the purchase please indicate why it is an integral and necessary part of the equipment for the implementation of the project and why it is essential for the achievement of the objectives of the project."]
[null,"g) A brief description of the technical/technological characteristics ",null,null,null,null,"Max 1000 characters."]
[3,"a) Type, description and planned quantities of the new equipment",null,null,null,null,"Max 500 characters."]
[null,"b) Assessment of the costs of purchasing new equipment"]
[null,"c) Estimation of the cost of maintenance and insurance of the new equipment in the duration of the project"]
[null,"d) Justification of purchasing new equipment ",null,null,null,null,"Max 1000 characters."]
[null,"e) Manner of ensuring meeting the specific conditions pertaining to the purchase of new equipment after the approval of the final project report in the five-year period",null,null,null,null,"Max 1000 characters."]
[null,"f) Owner (s) of the new equipment after purchase",null,null,null,null,"In the justification of the purchase please indicate why it is an integral and necessary part of the equipment for the implementation of the project and why it is essential for the achievement of the objectives of the project."]
[null,"g) A brief description of the technical/technological characteristics ",null,null,null,null,"Max 1000 characters."]
[4,"a) Type, description and planned quantities of the new equipment",null,null,null,null,"Max 500 characters."]
[null,"b) Assessment of the costs of purchasing new equipment"]
[null,"c) Estimation of the cost of maintenance and insurance of the new equipment in the duration of the project"]
[null,"d) Justification of purchasing new equipment ",null,null,null,null,"Max 1000 characters."]
[null,"e) Manner of ensuring meeting the specific conditions pertaining to the purchase of new equipment after the approval of the final project report in the five-year period",null,null,null,null,"Maximum 1000 characters"]
[null,"f) Owner (s) of the new equipment after purchase",null,null,null,null,"In the justification of the purchase please indicate why it is an integral and necessary part of the equipment for the implementation of the project and why it is essential for the achievement of the objectives of the project."]
[null,"g) A brief description of the technical/technological characteristics ",null,null,null,null,"Maximum 1000 characters"]
[5,"a) Type, description and planned quantities of the new equipment",null,null,null,null,"Max 500 characters."]
[null,"b) Assessment of the costs of purchasing new equipment"]
[null,"c) Estimation of the cost of maintenance and insurance of the new equipment in the duration of the project"]
[null,"d) Justification of purchasing new equipment ",null,null,null,null,"Max 1000 characters."]
[null,"e) Manner of ensuring meeting the specific conditions pertaining to the purchase of new equipment after the approval of the final project report in the five-year period",null,null,null,null,"Max 1000 characters."]
[null,"f) Owner (s) of the new equipment after purchase",null,null,null,null,"In the justification of the purchase please indicate why it is an integral and necessary part of the equipment for the implementation of the project and why it is essential for the achievement of the objectives of the project."]
[null,"g) A brief description of the technical/technological characteristics ",null,null,null,null,"Max 1000 characters."]
[6,"a) Type, description and planned quantities of the new equipment",null,null,null,null,"Max500 characters."]
[null,"b) Assessment of the costs of purchasing new equipment"]
[null,"c) Estimation of the cost of maintenance and insurance of the new equipment in the duration of the project"]
[null,"d) Justification of purchasing new equipment ",null,null,null,null,"Max 1000 characters."]
[null,"e) Manner of ensuring meeting the specific conditions pertaining to the purchase of new equipment after the approval of the final project report in the five-year period",null,null,null,null,"Max 1000 characters."]
[null,"f) Owner (s) of the new equipment after purchase",null,null,null,null,"In the justification of the purchase please indicate why it is an integral and necessary part of the equipment for the implementation of the project and why it is essential for the achievement of the objectives of the project."]
[null,"g) A brief description of the technical/technological characteristics ",null,null,null,null,"Maximum 1000 characters"]
[7,"a) Type, description and planned quantities of the new equipment",null,null,null,null,"Maximum 500 characters"]
[null,"b) Assessment of the costs of purchasing new equipment"]
[null,"c) Estimation of the cost of maintenance and insurance of the new equipment in the duration of the project"]
[null,"d) Justification of purchasing new equipment ",null,null,null,null,"Max 1000 characters."]
[null,"e) Manner of ensuring meeting the specific conditions pertaining to the purchase of new equipment after the approval of the final project report in the five-year period",null,null,null,null,"Max 1000 characters."]
[null,"f) Owner (s) of the new equipment after purchase",null,null,null,null,"In the justification of the purchase please indicate why it is an integral and necessary part of the equipment for the implementation of the project and why it is essential for the achievement of the objectives of the project."]
[null,"g) A brief description of the technical/technological characteristics ",null,null,null,null,"Max 1000 characters."]
[8,"a) Type, description and planned quantities of the new equipment",null,null,null,null,"Max 500 characters."]
[null,"b) Assessment of the costs of purchasing new equipment"]
[null,"c) Estimation of the cost of maintenance and insurance of the new equipment in the duration of the project"]
[null,"d) Justification of purchasing new equipment ",null,null,null,null,"Maximum 1000 characters"]
[null,"e) Manner of ensuring meeting the specific conditions pertaining to the purchase of new equipment after the approval of the final project report in the five-year period",null,null,null,null,"Max 1000 characters."]
[null,"f) Owner (s) of the new equipment after purchase",null,null,null,null,"In the justification of the purchase please indicate why it is an integral and necessary part of the equipment for the implementation of the project and why it is essential for the achievement of the objectives of the project."]
[null,"g) A brief description of the technical/technological characteristics ",null,null,null,null,"Max 1000 characters."]
[9,"a) Type, description and planned quantities of the new equipment",null,null,null,null,"Max 500 characters."]
[null,"b) Assessment of the costs of purchasing new equipment"]
[null,"c) Estimation of the cost of maintenance and insurance of the new equipment in the duration of the project"]
[null,"d) Justification of purchasing new equipment ",null,null,null,null,"Max 1000 characters."]
[null,"e) Manner of ensuring meeting the specific conditions pertaining to the purchase of new equipment after the approval of the final project report in the five-year period",null,null,null,null,"Max 1000 characters."]
[null,"f) Owner (s) of the new equipment after purchase",null,null,null,null,"In the justification of the purchase please indicate why it is an integral and necessary part of the equipment for the implementation of the project and why it is essential for the achievement of the objectives of the project."]
[null,"g) A brief description of the technical/technological characteristics ",null,null,null,null,"Max1000 characters."]
[10,"a) Type, description and planned quantities of the new equipment",null,null,null,null,"Max 500 characters."]
[null,"b) Assessment of the costs of purchasing new equipment"]
[null,"c) Estimation of the cost of maintenance and insurance of the new equipment in the duration of the project"]
[null,"d) Justification of purchasing new equipment ",null,null,null,null,"Max1000 characters."]
[null,"e) Manner of ensuring meeting the specific conditions pertaining to the purchase of new equipment after the approval of the final project report in the five-year period",null,null,null,null,"Max1000 characters."]
[null,"f) Owner (s) of the new equipment after purchase",null,null,null,null,"In the justification of the purchase please indicate why it is an integral and necessary part of the equipment for the implementation of the project and why it is essential for the achievement of the objectives of the project."]
[null,"g) A brief description of the technical/technological characteristics ",null,null,null,null,"Max 1000 characters."]
[11,"a) Type, description and planned quantities of the new equipment",null,null,null,null,"Max 500 characters."]
[null,"b) Assessment of the costs of purchasing new equipment"]
[null,"c) Estimation of the cost of maintenance and insurance of the new equipment in the duration of the project"]
[null,"d) Justification of purchasing new equipment ",null,null,null,null,"Max1000 characters."]
[null,"e) Manner of ensuring meeting the specific conditions pertaining to the purchase of new equipment after the approval of the final project report in the five-year period",null,null,null,null,"Max1000 characters."]
[null,"f) Owner (s) of the new equipment after purchase",null,null,null,null,"In the justification of the purchase please indicate why it is an integral and necessary part of the equipment for the implementation of the project and why it is essential for the achievement of the objectives of the project."]
[null,"g) A brief description of the technical/technological characteristics ",null,null,null,null,"Max1000 characters."]
[]
[]
["The table below represents the automatic calculation of the estimation of the total costs of purchasing new equipment and the share of these costs in relation to the overall eligible costs. The eligible costs of purchasing new equipment shall represent no more than 30% of the total eligible costs of the project."]
["in euros",null,null,null,"Share of the total eligible costs"]
["Estimation of the total eligible costs of purchasing new equipment",null,null,{"$f":"D71+D78+D85+D92+D99+D106+D113+D120+D127+D134+D141","v":0},{"$f":"D151/'FINANCIAL PLAN'!N27","v":{"$error":"#DIV/0!"}}]
[]
["Indicate the prepared data on the drafted investment documentation if projects include purchase of new equipment for which the reimbursement of the entire purchase price is claimed within the project."]
[]
[null,"Prepared DIIP (investment project identification document)"]
[null,"Prepared DIIP (Investment project identification document), IP (investment programme)"]
[null,"Prepared DIIP (investment project identification document), PIZ (pre-investment study) and IP (investment programme)"]
[null,"Other:"]

{"sheet":"data_oprema","index":12,"n_rows":21,"n_cols":6,"rows_kept":21,"cut":false,"hidden":true,"merged":[]}
[]
[]
[]
["opn","start","end",null,"e7"]
[2,14,19,null,null,{"$f":"(A5-1) * 6 + 13","v":19}]
[3,20,25,null,null,{"$f":"(A6-1) * 6 + 13","v":25}]
[4,26,31,null,null,31]
[5,32,37,null,null,37]
[6,38,43,null,null,43]
[7,44,49,null,null,49]
[8,50,55,null,null,55]
[9,56,61,null,null,61]
[10,62,67,null,null,67]
[11,68,73,null,null,73]
[]
[null,87,null,null,"E79"]
[]
[]
[]
[]
[null,null,156]

{"sheet":"FINANCIAL PLAN","index":13,"n_rows":84,"n_cols":15,"rows_kept":84,"cut":false,"hidden":false,"merged":[[70,11,70,19],[29,0,29,9],[31,11,32,11],[50,4,50,5],[51,4,52,4],[51,5,52,5],[48,0,48,10],[33,4,33,5],[34,4,35,4],[34,5,35,5],[33,6,35,6],[33,3,35,3],[50,3,52,3],[33,1,35,1],[33,2,35,2],[50,1,52,1],[50,2,52,2],[50,6,52,6],[50,7,52,7],[50,10,52,10],[24,1,24,3],[25,1,25,3],[26,1,26,3],[21,4,21,6],[22,4,22,6],[23,4,23,6],[24,4,24,6],[25,4,25,6],[26,4,26,6],[21,1,21,3],[22,1,22,3],[9,7,9,9],[10,7,10,9],[11,7,11,9],[7,4,7,6],[8,4,8,6],[9,4,9,6],[10,4,10,6],[11,4,11,6],[23,1,23,3],[12,7,12,9],[13,7,13,9],[14,7,14,9],[12,1,12,3],[13,1,13,3],[14,1,14,3],[12,4,12,6],[13,4,13,6],[14,4,14,6],[18,0,18,2],[81,6,81,7],[82,6,82,7],[83,6,83,7],[76,8,76,9],[77,8,77,9],[78,8,78,9],[79,8,79,9],[80,8,80,9],[81,8,81,9],[82,8,82,9],[83,8,83,9],[76,6,76,7],[77,6,77,7],[78,6,78,7],[79,6,79,7],[80,6,80,7],[79,1,79,3],[80,1,80,3],[80,4,80,5],[79,4,79,5],[78,4,78,5],[77,4,77,5],[76,4,76,5],[83,4,83,5],[82,4,82,5],[81,4,81,5],[81,1,81,3],[82,1,82,3],[83,1,83,3],[76,1,76,3],[77,1,77,3],[78,1,78,3],[0,0,0,2],[2,0,2,2],[3,0,3,2],[4,0,4,2],[5,0,5,9],[19,0,19,9],[74,0,74,9],[21,7,21,9],[22,7,22,9],[23,7,23,9],[24,7,24,9],[25,7,25,9],[26,7,26,9],[33,8,35,8],[50,8,52,8],[50,9,52,9],[33,7,35,7],[7,1,7,3],[8,1,8,3],[9,1,9,3],[10,1,10,3],[11,1,11,3],[7,7,7,9],[8,7,8,9]]}
["7. FINANCIAL PLAN"]
[]
["Sources of funding"]
[]
["Sources of funding – applicant is an NGO"]
["If the applicant is an NGO, fill in the table given below regarding the sources of financing of the total eligible project costs. The project eligible costs can be co-financed from the grant in the amount of  up to 90% while the NGO, acting as the Project Promoter, should provide the remaining 10% through own contribution. 50% of own contribution can contribute in voluntary work. The amount of grant shall not exceed 90 % of the total eligible costs of the project"]
[]
["Sources of funding","Amount",null,null,"Share",null,null,"Delež lastne udeležbe"]
["1. OWN CONTRIBUTION",{"$f":"B10+B11","v":0},null,null,{"$f":"B9/$B$15","v":{"$error":"#DIV/0!"}}]
["1.1 Cash contribution",null,null,null,{"$f":"B10/$B$15","v":{"$error":"#DIV/0!"}},null,null,{"$f":"B10/B9","v":{"$error":"#DIV/0!"}}]
["1.2 In-kind contribution",null,null,null,{"$error":"#DIV/0!"},null,null,{"$f":"B11/B9","v":{"$error":"#DIV/0!"}}]
["2. CO-FINANCING GRANT OF THE PROJECT",null,null,null,{"$error":"#DIV/0!"},null,null,"Share of co-financing grant"]
["2.1 Earmarked funds NOR",{"$f":"0.85 * B12","v":0},null,null,{"$error":"#DIV/0!"},null,null,{"$f":"B13/$B$12","v":{"$error":"#DIV/0!"}}]
["2.2. National funding",{"$f":"0.15 * B12","v":0},null,null,{"$error":"#DIV/0!"},null,null,{"$f":"B14/$B$12","v":{"$error":"#DIV/0!"}}]
["3. TOTAL ELIGIBLE COSTS OF THE PROJECT",null,null,null,{"$error":"#DIV/0!"}]
[]
[]
[]
[" Sources of funding – other applicants"]
["If the applicant is not an NGO, fill in the table given below regarding the sources of financing of the total project eligible costs. The project eligible costs can be co-financed from the grant in the amount of up to 95% while the Project Promoter should provide the remaining 5% through own contribution.    "]
[]
["Vir financiranja","Amount",null,null,"Share"]
["1. OWN CONTRIBUTION",null,null,null,{"$f":"B23/$B$27","v":{"$error":"#DIV/0!"}}]
["2. CO-FINANCING GRANT OF THE PROJECT",null,null,null,{"$f":"B24/$B$27","v":{"$error":"#DIV/0!"}},null,null,"Share of co-financing grant"]
["2.1 Earmarked funds NOR",{"$f":"0.85*$B$24","v":0},null,null,{"$error":"#DIV/0!"},null,null,{"$f":"B25/$B$24","v":{"$error":"#DIV/0!"}}]
["2.2. National funding",{"$f":"0.85*$B$24","v":0},null,null,{"$error":"#DIV/0!"},null,null,{"$f":"B26/$B$24","v":{"$error":"#DIV/0!"}},null,null,null,null,null,"znesek","delež"]
["3. TOTAL ELIGIBLE COSTS OF THE PROJECT",null,null,null,{"$error":"#DIV/0!"},null,null,null,null,null,null,null,"skupni",{"$f":"IF(ISNUMBER(B15),B15,B27)","v":0}]
[null,null,null,null,null,null,null,null,null,null,null,null,"lastna",{"$f":"IF(ISNUMBER(B15),B9,B23)","v":0},{"$f":"IF(ISNUMBER(B15),E9,E23)","v":{"$error":"#DIV/0!"}}]
["Foreseen total eligible project costs by cost categories, in-kind and working sets.",null,null,null,null,null,null,null,null,null,null,null,"nepovratna",{"$f":"IF(ISNUMBER(B15),B12,B24)","v":0},{"$f":"IF(ISNUMBER(B15),E15,E27)","v":{"$error":"#DIV/0!"}}]
["Fill in the table given below by cost categories, in-kind and working sets. "]
[]
["Method of the indirect administrative costs calculation: ",null,null,null,null,null,null,null,null,null,null,"Method A means the calculation of the indirect administrative costs by the key, method B by the flat rate. See the Chapter 2.3.3.4.  Applicants Manual - Set A."]
[]
["Cost category","Personnel costs","Costs of outsourcing","Costs of equipment","Administrative costs",null,"In-kind","TOTAL\nELIGILBE COSTS ","Share of the total eligible costs of the project"]
[null,null,null,null,"Direct costs","Indirect costs"]
["Work set"]
["WS 1",null,null,null,null,null,null,{"$f":"SUM(B37:G37)","v":0},{"$f":"H37/$N$27","v":{"$error":"#DIV/0!"}}]
["WS 2",null,null,null,null,null,null,0,{"$f":"H38/$N$27","v":{"$error":"#DIV/0!"}}]
["WS 3",null,null,null,null,null,null,0,{"$error":"#DIV/0!"}]
["WS 4",null,null,null,null,null,null,0,{"$error":"#DIV/0!"}]
["WS 5",null,null,null,null,null,null,0,{"$error":"#DIV/0!"}]
["WS 6",null,null,null,null,null,null,0,{"$error":"#DIV/0!"}]
["TOTAL\nELIGILBE COSTS ",{"$f":"SUM(B37:B42)","v":0},0,0,0,{"$f":"SUM(F37:F42)","v":0},0,0,{"$error":"#DIV/0!"},null,null,"The total sum of the eligible costs must be equal to the amount of total eligible project costs from the table Sources of financing. "]
["Share of the total eligible costs of the project",{"$f":"B43/$N$27","v":{"$error":"#DIV/0!"}},{"$f":"C43/$N$27","v":{"$error":"#DIV/0!"}},{"$error":"#DIV/0!"},{"$error":"#DIV/0!"},{"$f":"F43/$N$27","v":{"$error":"#DIV/0!"}},{"$error":"#DIV/0!"},{"$error":"#DIV/0!"}]
[]
[]
[]
["Foreseen total project eligible costs by cost categories and partners"]
["Fill in the table given below by cost categories and partners. "]
[]
["Cost category and in kind","Personnel costs","Costs of outsourcing","Costs of equipment","Administrative costs",null,"In-kind","TOTAL\nELIGILBE COSTS ","Share of the total eligible costs of the project","Amount of the grant","Amount of own contribution "]
[null,null,null,null,"Direct costs","Indirect costs"]
["Upravičenci"]
["Applicant",null,null,null,null,null,null,{"$f":"SUM(B54:G54)","v":0},{"$f":"H54/$N$27","v":{"$error":"#DIV/0!"}}]
["Partner 1",null,null,null,null,null,null,0,{"$f":"H55/$N$27","v":{"$error":"#DIV/0!"}}]
["Partner 2",null,null,null,null,null,null,0,{"$error":"#DIV/0!"}]
["Partner 3",null,null,null,null,null,null,0,{"$error":"#DIV/0!"}]
["Partner 4",null,null,null,null,null,null,0,{"$error":"#DIV/0!"}]
["Partner 5",null,null,null,null,null,null,0,{"$error":"#DIV/0!"}]
["Partner 6",null,null,null,null,null,null,0,{"$error":"#DIV/0!"}]
["Partner 7",null,null,null,null,null,null,0,{"$error":"#DIV/0!"}]
["Partner 8",null,null,null,null,null,null,0,{"$error":"#DIV/0!"}]
["Partner 9",null,null,null,null,null,null,0,{"$error":"#DIV/0!"}]
["Partner 10",null,null,null,null,null,null,0,{"$error":"#DIV/0!"}]
["Partner 11",null,null,null,null,null,null,0,{"$error":"#DIV/0!"}]
["Partner 12",null,null,null,null,null,null,0,{"$error":"#DIV/0!"}]
["Partner 13",null,null,null,null,null,null,0,{"$error":"#DIV/0!"}]
["Partner 14",null,null,null,null,null,null,0,{"$error":"#DIV/0!"}]
["Partner 15",null,null,null,null,null,null,0,{"$error":"#DIV/0!"}]
["Partner 16",null,null,null,null,null,null,0,{"$error":"#DIV/0!"}]
["TOTAL\nELIGILBE COSTS ",{"$f":"SUM(B54:B70)","v":0},{"$f":"SUM(C54:C70)","v":0},0,0,{"$f":"SUM(F54:F70)","v":0},0,{"$f":"SUM(H54:H70)","v":0},{"$error":"#DIV/0!"},{"$f":"SUM(J54:J70)","v":0},{"$f":"SUM(K54:K70)","v":0},"The total sum of the eligible costs must be equal to the amount of total eligible project costs from the table Sources of financing. "]
["Share of the total eligible costs of the project",{"$f":"B71/$N$27","v":{"$error":"#DIV/0!"}},{"$f":"C71/$N$27","v":{"$error":"#DIV/0!"}},{"$error":"#DIV/0!"},{"$error":"#DIV/0!"},{"$error":"#DIV/0!"},{"$f":"G71/$N$27","v":{"$error":"#DIV/0!"}},{"$error":"#DIV/0!"},null,null,null,null,"Skupni seštevek upravičenih stroškov mora biti enak  višini skupnih upravičenih stroškov projekta iz tabele  Viri financiranja."]
[]
["Indicative timeframe of spending"]
["For each period specify the total eligible costs of the project; the amount of the grant and the amount of own contribution is calculated automatically.  "]
[]
[null,"Period",null,null,"Total eligible costs incurred in the given period ",null,"Amount of the grant",null,"Amount of own contribution"]
[null,"1.5.2014-31.8.2014",null,null,null,null,{"$f":"E78/$O$29","v":{"$error":"#DIV/0!"}},null,{"$f":"E78/$O$28","v":{"$error":"#DIV/0!"}}]
[null,"1.9.2014-31.12.2014",null,null,null,null,{"$f":"E79/$O$29","v":{"$error":"#DIV/0!"}},null,{"$f":"E79/$O$28","v":{"$error":"#DIV/0!"}}]
[null,"1.1.2015-30.4.2015",null,null,null,null,{"$error":"#DIV/0!"},null,{"$error":"#DIV/0!"}]
[null,"1.5.2015-31.8.2015",null,null,null,null,{"$error":"#DIV/0!"},null,{"$error":"#DIV/0!"}]
[null,"1.9.2015-31.12.2015",null,null,null,null,{"$error":"#DIV/0!"},null,{"$error":"#DIV/0!"}]
[null,"1.1.2016-30.4.2016",null,null,null,null,{"$error":"#DIV/0!"},null,{"$error":"#DIV/0!"}]
[null,"Total",null,null,{"$f":"SUM(E78:F83)","v":0},null,{"$f":"SUM(G78:H83)","v":{"$error":"#DIV/0!"}},null,{"$error":"#DIV/0!"},null,null,"The total sum of the eligible costs must be equal to the amount of total eligible project costs from the table Sources of financing. "]

{"sheet":"data_cas_nacrt","index":14,"n_rows":9,"n_cols":8,"rows_kept":9,"cut":false,"hidden":true,"merged":[]}
[]
[null,"delni",null,null,"celotno",null,null,"Delovni načrt projekta'"]
["ds","dej 2","dej 10",null,null,null,null,{"$f":"'Project work plan'!F5","v":0}]
[1,9,18,"F5",null,"G19"]
[2,25,33,"G20"]
[3,41,49,"F35",35,50]
[4,57,65,"F51",51,66]
[5,73,81,"F67",67,82]
[6,89,97,"F83",83,98]

{"sheet":"PROJECT ROADMAP","index":15,"n_rows":71,"n_cols":27,"rows_kept":71,"cut":false,"hidden":false,"merged":[[4,9,4,20],[4,21,4,24],[4,1,4,8],[0,0,0,7],[2,0,2,24]]}
["8. PROJECT ROADMAP"]
[]
["For each activity define the period, in which it will be implemented."]
[]
["Activity",2014,null,null,null,null,null,null,null,2015,null,null,null,null,null,null,null,null,null,null,null,2016]
[null,5,6,7,8,9,10,11,12,1,2,3,4,5,6,7,8,9,10,11,12,1,2,3,4]
["ACT 1.1",null,null,null,null,null,null,null,null,null,null,null,null,null,null,null,null,null,null,null,null,null,null,null,null,null,"Mark with \"x\""]
["ACT 1.2"]
["ACT 1.3"]
["ACT 1.4"]
["ACT 1.5"]
["ACT 1.6"]
["ACT 1.7"]
["ACT 1.8"]
["ACT 1.9"]
["ACT 1.10"]
[]
["ACT 2.1"]
["ACT 2.2"]
["ACT 2.3"]
["ACT 2.4"]
["ACT 2.5"]
["ACT 2.6"]
["ACT 2.7"]
["ACT 2.8"]
["ACT 2.9"]
["ACT 2.10"]
[]
["ACT 3.1"]
["ACT 3.2"]
["ACT 3.3"]
["ACT 3.4"]
["ACT 3.5"]
["ACT 3.6"]
["ACT 3.7"]
["ACT 3.8"]
["ACT 3.9"]
["ACT 3.10"]
[]
["ACT 4.1"]
["ACT 4.2"]
["ACT 4.3"]
["ACT 4.4"]
["ACT 4.5"]
["ACT 4.6"]
["ACT 4.7"]
["ACT 4.8"]
["ACT 4.9"]
["ACT 4.10"]
[]
["ACT 5.1"]
["ACT 5.2"]
["ACT 5.3"]
["ACT 5.4"]
["ACT 5.5"]
["ACT 5.6"]
["ACT 5.7"]
["ACT 5.8"]
["ACT 5.9"]
["ACT 5.10"]
[]
["ACT 6.1"]
["ACT 6.2"]
["ACT 6.3"]
["ACT 6.4"]
["ACT 6.5"]
["ACT 6.6"]
["ACT 6.7"]
["ACT 6.8"]
["ACT 6.9"]
["ACT 6.10"]

{"sheet":"PROJECT IMPLEMENTATION RISKS","index":16,"n_rows":20,"n_cols":8,"rows_kept":20,"cut":false,"hidden":false,"merged":[[0,0,0,2],[1,0,1,1],[10,0,10,1],[7,1,7,2],[8,1,8,2],[2,0,2,2],[6,1,6,2]]}
["9. PROJECT IMPLEMENTATION RISKS"]
[]
["Opišite tveganja, ki lahko vplivajo na izvedbo projekta, in kako boste ukrepali, da se tveganju izognete oz. ga zmanjšate. Obvezno navedite ukrepe za zmanjšanje tveganja za splošna tveganja. V kolikor obstajajo tudi specifična tveganja, jih opredelite za posamezno dejavnost in navedite ukrepe za njihovo zmanjšanje."]
[null,null,null,null,null,null,null,0]
["General risks",null,null,null,null,null,null,1]
[null,null,null,null,null,null,null,2]
["Risk","Action to reduce the risk",null,null,null,null,null,3]
["The lack of liquidity of assets for the smooth implementation of the project throughout the entire period",null,null,null,"Max 500 characters.",null,null,4]
["Lack of adequate human resources within the organisation of the applicant and partners",null,null,null,"Max 500 characters.",null,null,5]
[null,null,null,null,null,null,null,6]
["Specifična tveganja za glavne dejavnosti",null,null,null,null,null,null,7]
[null,null,null,null,null,null,null,8]
["Število polj",1,null,null,"Select the number of rows from the list",null,null,9]
["Activity","Risk","Action to reduce the risk",null,null,null,null,10]
[null,null,null,null,"Max 500 characters.",null,null,11]
[null,null,null,null,null,null,null,12]
[null,null,null,null,null,null,null,13]
[null,null,null,null,null,null,null,14]
[null,null,null,null,null,null,null,15]
[null,null,null,null,null,null,null,16]

{"sheet":"PROJECT IMPACT","index":17,"n_rows":8,"n_cols":7,"rows_kept":8,"cut":false,"hidden":false,"merged":[[2,0,2,4]]}
["10. PROJECT IMPACT ON HORIZONTAL PROGRAMME POLICIES"]
[]
["Define the extent of the project impact on the individual horizontal programme policies. Describe how the project impacts the horizontal programme policies and define the possible specific models, structures or mechanisms with which it contributes to the realisation of horizontal policies."]
[]
["Horizontal policies","No impact","Medium impact","Big impact","Project impact on horizontal policies"]
["Sustainable development",null,null,null,null,null,"Max 1000 characters."]
["Good governance",null,null,null,null,null,"Max 1000 characters."]
["Gender equality",null,null,null,null,null,"Max 1000 characters."]

{"sheet":"INFORMATION AND PUBLICITY PLAN","index":18,"n_rows":5,"n_cols":3,"rows_kept":5,"cut":false,"hidden":false,"merged":[]}
["11. INFORMATION AND PUBLICITY PLAN"]
[]
["Present the information and publicity plan. "]
[" "]
[null,null,"Max 5000 characters."]

{"sheet":"CHECKLIST","index":19,"n_rows":20,"n_cols":2,"rows_kept":20,"cut":false,"hidden":false,"merged":[[0,0,0,1],[1,0,1,1],[2,0,2,1]]}
["12. CHECKLIST"]
[]
[" The checklist serves only as an aid in drafting the application."]
[]
[null,"The application form in the English and the Slovenian language has been filled in completely and the hard copy has been signed and stamped."]
[null,"A statement of the applicant has been filled in, signed and stamped."]
[null,"Partnership statement has been filled in, signed, stamped and annexed for each partner."]
[null,"A copy of the founding document of the applicant and each partner is enclosed."]
[null,"The balance sheet of the applicant and partners for 2012 is enclosed."]
[null,"The original mandate given by the person in charge of the institution, insofar as the signer is not the responsible person."]
[null,"A copy of the investment documentation is enclosed."]
[null,"The application is drawn up in a single original in hard copy."]
[null,"The application is enclosed in electronic form on CD, DVD or USB flash drive."]
[null,"The envelope is marked accordingly, including an indication of the areas or sub-areas of the call."]
[null,"Project duration is longer than 12 months and shall end no later than 30 April 2016."]
[null,"The requested amount of the grant for the projects in the field of public health initiatives is above 170,000 euros and not exceeding 1 million euros, and at the same time not exceeding 95.00% of the project eligible costs, or 90.00% where the applicant is a non-governmental organization."]
[null,"The requested amount of the grant for projects in the field of gender equality is above 50,000 euros and not exceeding 250,000 euros and at the same time not exceeding 95.00% of the project eligible costs, or 90.00% where the applicant is a non-governmental organization."]
[null,"Own co-financing is provided in the amount of at least 5.00% of the total project eligible costs or 10.00% if the applicant is a non-governmental organization."]
[null,"The cost of purchasing new equipment can represent up to 30% of the total project eligible costs."]
[null,"In projects where the project promoter is a non-governmental organization, the immaterial contributions in the form of volunteering (“in-kind”) can represent up to 50% of own participation."]

{"sheet":"SIGNATURE","index":20,"n_rows":17,"n_cols":7,"rows_kept":17,"cut":false,"hidden":false,"merged":[[0,1,0,2],[2,1,2,4],[3,1,3,4],[4,1,4,4],[14,4,15,4],[11,4,12,4]]}
[null,"13. APPLICANT SIGNATURE "]
[]
[null,"I confirm that I have full powers of the institutions of the applicant to sign this application, that I thoroughly checked all statements and information given in this application and that they are correct and accurate."]
[]
[null,"I agree that MEDT can publish parts of this application."]
[]
[null,"Place and date",null,null,"Signature of the responsible person or authorised person."]
[]
[null,null,null,null,null,null,"Sign and stamp only the hard copy of the application."]
[null,null,null,null,"signature"]
[]
[]
[]
[null,null,null,null,"Name and surname"]
[]
[]
[null,null,null,null,"title"]